Workbook

Sheet Summary
A1: Status as of 1/9/14
A2: Task | B2: Status | C2: DB/Avante | D2: UI | E2: DB/AV Rework | F2: UI Rework | G2: Ongoing QA
A4: ShopWidget | B4: In Progress | C4: =ShopWidget!E4 -> 72 | D4: =ShopWidget!G4 -> 85
A5: SavedItems | B5: In Progress | C5: =SavedItems!E4 -> 26 | D5: =SavedItems!G4 -> 9.25
A6: OrderHistory | B6: In Progress | C6: =OrderHistory!E4 -> 0 | D6: =OrderHistory!G4 -> 0
A7: SavedCarts | B7: In Progress | C7: =SavedCarts!E4 -> 4 | D7: =SavedCarts!G4 -> 6
A8: ShareCart | B8: In Progress | C8: =ShareCart!E4 -> 8 | D8: =ShareCart!G4 -> 20
A9: ActiveCart | B9: In Progress | C9: =ActiveCart!E4 -> 27 | D9: =ActiveCart!G4 -> 36
A10: Checkout | B10: In Progress | C10: =Checkout!E4 -> 97.5 | D10: =Checkout!G4 -> 74.5
A11: CEWeb | C11: =CEWeb!E4 -> 23 | D11: =CEWeb!G4 -> 0
A12: Miscellaneous | C12: =Miscellaneous!E4 -> 215 | D12: =Miscellaneous!G4 -> 151
A13: DataConversions | B13: TBDesigned | C13: =DataConversions!E4 -> 74 | D13: =DataConversions!G4 -> 0
A14: My Account | B14: TBDesigned | C14: =MyAccount!E4 -> 0 | D14: =MyAccount!F4 -> 0
A16: #Hours | C16: =SUM(C4:C15) -> 546.5 | D16: =SUM(D4:D15) -> 381.75
C17: 2.4 | D17: 1.6
A18: #Weeks | C18: =(((C16/C17)+0.49)/40) -> 5.704958333 | D18: =(((D16/D17)+0.49)/40) -> 5.97709375
A19: Complete Date | C19: =TODAY()+(C18*7) -> 2014-03-22T22:25:58.800 | D19: =TODAY()+(D18*7) -> 2014-03-24T20:09:06.300
A21: Dates as of Prev Week
A24: Pre Login Func | C24: 0 | D24: 0 | E24: 0 | F24: 0 | G24: 0 | H24: This functionality should be in the numbers of the pertinent sections
A25: Mktg/Fat Content | C25: 4 | D25: 8 | E25: 3 | F25: 3 | G25: 3 | H25: These numbers are COMPLETE guesses. This line is to represent the "front page" information from the existing site.
A26: CE Web Integration | B26: TBDesigned | C26: =CEWeb!H11 -> 0 | D26: =CEWeb!K11 -> 0 | E26: =CEWeb!M11 -> 0 | F26: =CEWeb!N11 -> 0 | G26: =CEWeb!O11 -> 0
A27: Predictive Ordering | B27: TBDesigned | C27: 3 | D27: 2 | E27: 2 | F27: 2 | G27: 2 | H27: incomplete design
A28: Shared Item | C28: 0 | D28: 0 | E28: 0 | F28: 0 | G28: 0 | H28: This is complete however, handling FAX customers is still a problem. Needs to be discussed.
A29: Notifications | C29: 4 | D29: 4 | E29: 2 | F29: 2 | G29: 2 | H29: A system needs to be designed on what to tell customers about and how to let them customize what they are told about. For example, when their order ships, when someone empties their cart.

Sheet ShopWidget
A1: Task Nbr | B1: Status | C1: Programming Task Description | D1: DB Hours | E1: DB Rem | F1: UI Hours | G1: UI Rem | H1: Avante | I1: UI | J1: QA | L1: Status/Notes
D2: Avante | F2: UI | H2: Rework
C3: =Summary!A1 -> Status as of 1/9/14
A4: ShopWidget | C4: Total Hours | D4: =SUM(D5:D65536) -> 72 | E4: =SUM(E5:E65536) -> 72 | F4: =SUM(F5:F65536) -> 86 | G4: =SUM(G5:G65536) -> 85
A5: 1-0 | B5: 4 | C5: Avante - Changes for Rolls, Rolls Cradle packed, Rolls Boxed | D5: 0 | E5: 0 | F5: 0 | G5: 0
A6: 18-0 | B6: 3 | C6: Marketplace - When to show MOD Result | D6: 0 | E6: 0 | F6: 12 | G6: 12
A7: 23-0 | B7: 2 | C7: Default and Validate Zip Code Based on Active Cart | D7: 0 | E7: 0 | F7: 1 | G7: 0
A8: 31-0 | B8: 99 | C8: Continue to Test and Bug Fix the Shop Widget | D8: 0 | E8: 0 | F8: 0 | G8: 0
A9: 32-0 | B9: 1 | C9: Validations - Group Validations | D9: 0 | E9: 0 | F9: 25 | G9: 25
A10: 33-0 | B10: 0 | C10: Changing Quotes | D10: 0 | E10: 0 | F10: 0 | G10: 0
A11: 34-0 | B11: 1 | C11: Extended Descriptions | D11: 0 | E11: 0 | F11: 1 | G11: 1
A12: 35-0 | B12: 0 | C12: Atlanta Production | D12: 12 | E12: 12 | F12: 0 | G12: 0
A13: 36-0 | B13: 4 | C13: Level 3 defaults | D13: 0 | E13: 0 | F13: 0 | G13: 0
A14: 39-0 | B14: 0 | C14: MOD Result - Random Repeat | D14: 0 | E14: 0 | F14: 0 | G14: 0
A15: 47-0 | B15: 1 | C15: Results - show message when can't make MOD item | D15: 2 | E15: 2 | F15: 0 | G15: 0
A16: 48-0 | B16: 1 | C16: Detecting WHS discrepancy for CPU MOD items. | D16: 2 | E16: 2 | F16: 23 | G16: 23
A17: 49-0 | B17: 4 | C17: Enter YMAC Rules for ALL categories | D17: 0 | E17: 0 | F17: 0 | G17: 0
A18: 50-0 | B18: 1 | C18: Banner Search - Search by Customer Part# or MOD Item Nbr | D18: 28 | E18: 28 | F18: 0 | G18: 0
A19: 81-0 | B19: 1 | C19: Stock Selections for Centerfold Sheeting & LLD | D19: 3 | E19: 3 | F19: 0 | G19: 0
A20: 82-0 | B20: 0 | C20: New Shop Widget Product Categories | D20: 8 | E20: 8 | F20: 0 | G20: 0
A21: 83-0 | B21: 2 | C21: Check for MOD Item match before showing MOD Result | D21: 17 | E21: 17 | F21: 0 | G21: 0
A22: 87-0 | B22: 0 | C22: Random Repeat - Plate Sorting/Selection | D22: 0 | E22: 0 | F22: 0 | G22: 0
A23: 88-0 | B23: 2 | C23: Redesign the Sharing interface | D23: 0 | E23: 0 | F23: 24 | G23: 24

Sheet SavedItems
A1: Task Nbr | B1: Status | C1: Programming Task Description | D1: DB Hours | E1: DB Rem | F1: UI Hours | G1: UI Rem | H1: Avante | I1: UI | J1: QA | L1: Status/Notes
D2: Avante | F2: UI | H2: Rework
C3: =Summary!A1 -> Status as of 1/9/14
A4: SavedItems | C4: Total Hours | D4: =SUM(D5:D65536) -> 32 | E4: =SUM(E5:E65536) -> 26 | F4: =SUM(F5:F65536) -> 45 | G4: =SUM(G5:G65536) -> 9.25
A5: 2-0 | B5: 1 | C5: New customer part number logic | D5: 28 | E5: 22 | F5: 3 | G5: -0.5
A6: 3-0 | B6: 3 | C6: Change the saved items record key | D6: 0 | E6: 0 | F6: 0 | G6: 0
A7: 26-0 | B7: 1 | C7: Saved Items / Multiple Quotes / MOD item in Multiple Carts | D7: 4 | E7: 4 | F7: 6 | G7: 6
A8: 27-0 | B8: 1 | C8: MOD item cannot be in the same cart more than once | D8: 0 | E8: 0 | F8: 6 | G8: 6
A9: 86-0 | B9: 2 | C9: Rework Saved Items Tab | D9: 0 | E9: 0 | F9: 30 | G9: -2.25

Sheet OrderHistory
A1: Task Nbr | B1: Status | C1: Programming Task Description | D1: DB Hours | E1: DB Rem | F1: UI Hours | G1: UI Rem | H1: Avante | I1: UI | J1: QA | L1: Status/Notes
D2: Avante | F2: UI | H2: Rework
C3: =Summary!A1 -> Status as of 1/9/14
A4: OrderHistory | C4: Total Hours | D4: =SUM(D5:D65536) -> 0 | E4: =SUM(E5:E65536) -> 0 | F4: =SUM(F5:F65536) -> 12 | G4: =SUM(G5:G65536) -> 0
A5: 19-0 | B5: 0 | C5: Modify results to handle master orders | D5: 0 | E5: 0 | F5: 0 | G5: 0
A6: 20-0 | B6: 0 | C6: Complete Summary Popup | D6: 0 | E6: 0 | F6: 0 | G6: 0
A7: 21-0 | B7: 0 | C7: Complete Tracking Popup for all Carriers | D7: 0 | E7: 0 | F7: 0 | G7: 0
A8: 52-0 | B8: 1 | C8: Remake Orders - Re-Order Page | D8: 0 | E8: 0 | F8: 12 | G8: 0

Sheet SavedCarts
A1: Task Nbr | B1: Status | C1: Programming Task Description | D1: DB Hours | E1: DB Rem | F1: UI Hours | G1: UI Rem | H1: Avante | I1: UI | J1: QA | L1: Status/Notes
D2: Avante | F2: UI | H2: Rework
C3: =Summary!A1 -> Status as of 1/9/14
A4: SavedCarts | C4: Total Hours | D4: =SUM(D5:D65536) -> 4 | E4: =SUM(E5:E65536) -> 4 | F4: =SUM(F5:F65536) -> 6 | G4: =SUM(G5:G65536) -> 6
A5: 37-0 | B5: 1 | C5: Results | D5: 4 | E5: 4 | F5: 6 | G5: 6
A6: 38-0 | B6: 0 | C6: Handling Working on Someone Else's Cart | D6: 0 | E6: 0 | F6: 0 | G6: 0

Sheet ShareCart
A1: Task Nbr | B1: Status | C1: Programming Task Description | D1: DB Hours | E1: DB Rem | F1: UI Hours | G1: UI Rem | H1: Avante | I1: UI | J1: QA | L1: Status/Notes
D2: Avante | F2: UI | H2: Rework
C3: =Summary!A1 -> Status as of 1/9/14
A4: ShareCart | C4: Total Hours | D4: =SUM(D5:D65536) -> 8 | E4: =SUM(E5:E65536) -> 8 | F4: =SUM(F5:F65536) -> 20 | G4: =SUM(G5:G65536) -> 20
A5: 40-0 | B5: 1 | C5: Redisplay Shared Cart from Saved Carts | D5: 8 | E5: 8 | F5: 20 | G5: 20

Sheet ActiveCart
A1: Task Nbr | B1: Status | C1: Programming Task Description | D1: DB Hours | E1: DB Rem | F1: UI Hours | G1: UI Rem | H1: Avante | I1: UI | J1: QA | L1: Status/Notes
D2: Avante | F2: UI | H2: Rework
C3: =Summary!A1 -> Status as of 1/9/14
A4: ActiveCart | C4: Total Hours | D4: =SUM(D5:D65536) -> 27 | E4: =SUM(E5:E65536) -> 27 | F4: =SUM(F5:F65536) -> 55 | G4: =SUM(G5:G65536) -> 36
A5: 12-0 | B5: 3 | C5: Cart - Handle Price expiration of MOD items | D5: 0 | E5: 0 | F5: 0 | G5: 0
A6: 13-0 | B6: 1 | C6: Cart - Repricing MOD items in the cart. | D6: 0 | E6: 0 | F6: 0 | G6: 0
A7: 14-0 | B7: 1 | C7: Cart - Handling Zipcode changes in the Cart. | D7: 10 | E7: 10 | F7: 3 | G7: 0
A8: 15-0 | B8: 1 | C8: Cart - CE version of contact’s cart (by operator) | D8: 8 | E8: 8 | F8: 0 | G8: 0
A9: 16-0 | B9: 1 | C9: Cart - New print plate logic (no checkout until approval) | D9: 0 | E9: 0 | F9: 32 | G9: 32
A10: 17-0 | B10: 1 | C10: Cart - Changes to Items in a Cart (add, delete , quantity changes) | D10: 1 | E10: 1 | F10: 4 | G10: 4
A11: 41-0 | B11: 1 | C11: MOD Item Descriptions | D11: 8 | E11: 8 | F11: 0 | G11: 0
A12: 42-0 | B12: 3 | C12: Freight Dropdown | D12: 0 | E12: 0 | F12: 0 | G12: 0
A13: 43-0 | B13: 3 | C13: Total Items | D13: 0 | E13: 0 | F13: 0 | G13: 0
A14: 45-0 | B14: 3 | C14: Quick Add | D14: 0 | E14: 0 | F14: 0 | G14: 0
A15: 53-0 | B15: 1 | C15: Stock & MOD Price Overrides (Misc$) | D15: 0 | E15: 0 | F15: 16 | G15: 0
A16: 85-0 | B16: 1 | C16: Adding MOD Items to Active Cart | D16: 0 | E16: 0 | F16: 0 | G16: 0

Sheet Checkout
A1: Task Nbr | B1: Status | C1: Programming Task Description | D1: DB Hours | E1: DB Rem | F1: UI Hours | G1: UI Rem | H1: Avante | I1: UI | J1: QA | L1: Status/Notes
D2: Avante | F2: UI | H2: Rework
C3: =Summary!A1 -> Status as of 1/9/14
A4: Checkout | C4: Total Hours | D4: =SUM(D5:D65536) -> 145.5 | E4: =SUM(E5:E65536) -> 97.5 | F4: =SUM(F5:F65536) -> 76.5 | G4: =SUM(G5:G65536) -> 74.5
A5: 5-0 | B5: 3 | C5: Duplicate P/O display in Checkout | D5: 0 | E5: 0 | F5: 0 | G5: 0
A6: 6-0 | B6: 1 | C6: Order Creation | D6: 35.5 | E6: 27 | F6: 0 | G6: 0
A7: 7-0 | B7: 1 | C7: Checkout - Labeling | D7: 0 | E7: 0 | F7: 6 | G7: 6
A8: 8-0 | B8: 1 | C8: Checkout - Addresses | D8: 4 | E8: 4 | F8: 10 | G8: 8
A9: 9-0 | B9: 1 | C9: Checkout - Payment | D9: 0 | E9: 0 | F9: 5 | G9: 5
A10: 10-0 | B10: 1 | C10: Checkout - Giving | D10: 6 | E10: 6 | F10: 2 | G10: 2
A11: 11-0 | B11: 1 | C11: Checkout - Bundling View | D11: 78 | E11: 39 | F11: 30 | G11: 30
A12: 54-0 | B12: 1 | C12: Checkout - Summary | D12: 16 | E12: 16 | F12: 18.5 | G12: 18.5
A13: 56-0 | B13: 2 | C13: Add Order Total Panel | D13: 6 | E13: 5.5 | F13: 0 | G13: 0
A14: 57-0 | B14: 0 | C14: Labeling | D14: 0 | E14: 0 | F14: 0 | G14: 0
A15: 58-0 | B15: 1 | C15: Master User Setup | D15: 0 | E15: 0 | F15: 5 | G15: 5
A16: 60-0 | B16: 3 | C16: Checkout Labeling - Build Label Image | D16: 0 | E16: 0 | F16: 0 | G16: 0

Sheet CEWeb
A1: Task Nbr | B1: Status | C1: Programming Task Description | D1: DB Hours | E1: DB Rem | F1: UI Hours | G1: UI Rem | H1: Avante | I1: UI | J1: QA | L1: Status/Notes
D2: Avante | F2: UI | H2: Rework
C3: =Summary!A1 -> Status as of 1/9/14
A4: CEWeb | C4: Total Hours | D4: =SUM(D5:D65536) -> 23 | E4: =SUM(E5:E65536) -> 23 | F4: =SUM(F5:F65536) -> 6 | G4: =SUM(G5:G65536) -> 0
A5: 22-0 | B5: 0 | C5: Spinning off multiple requests. | D5: 0 | E5: 0 | F5: 0 | G5: 0
A6: 24-0 | B6: 1 | C6: Send CE to the Web at the right time. | D6: 13 | E6: 13 | F6: 0 | G6: 0
A7: 25-0 | B7: 1 | C7: CE & Sales Impersonating a contact. | D7: 10 | E7: 10 | F7: 6 | G7: 0
A8: 28-0 | B8: 0 | C8: CE - Multiple Sessions - making it work | D8: 0 | E8: 0 | F8: 0 | G8: 0
A9: 29-0 | B9: 0 | C9: Godzilla - CE Quote Search | D9: 0 | E9: 0 | F9: 0 | G9: 0

Sheet Miscellaneous
A1: Task Nbr | B1: Status | C1: Programming Task Description | D1: DB Hours | E1: DB Rem | F1: UI Hours | G1: UI Rem | H1: Avante | I1: UI | J1: QA | L1: Status/Notes
D2: Avante | F2: UI | H2: Rework
C3: =Summary!A1 -> Status as of 1/9/14
A4: Miscellaneous | C4: Total Hours | D4: =SUM(D5:D65536) -> 215 | E4: =SUM(E5:E65536) -> 215 | F4: =SUM(F5:F65536) -> 151 | G4: =SUM(G5:G65536) -> 151
A5: 30-0 | B5: 1 | C5: Miscellaneous Avante Items | D5: 103 | E5: 103 | F5: 4 | G5: 4
A6: 61-0 | B6: 2 | C6: Cross Browser Support | D6: 0 | E6: 0 | F6: 96 | G6: 96
A7: 64-0 | B7: 0 | C7: Quote and Ack Forms | D7: 0 | E7: 0 | F7: 0 | G7: 0
A8: 65-0 | B8: 1 | C8: Web Discount | D8: 6 | E8: 6 | F8: 2 | G8: 2
A9: 66-0 | B9: 0 | C9: Order Creation - Credit Hold - for Master Orders | D9: 4 | E9: 4 | F9: 0 | G9: 0
A10: 68-0 | B10: 2 | C10: Shipping Instruction Upcharges | D10: 16 | E10: 16 | F10: 0 | G10: 0
A11: 70-0 | B11: 0 | C11: Invoice Form - Shipping Upcharges | D11: 8 | E11: 8 | F11: 0 | G11: 0
A12: 72-0 | B12: 1 | C12: Shipping Notifications | D12: 16 | E12: 16 | F12: 0 | G12: 0
A13: 75-0 | B13: 0 | C13: CE Discrepancies Drawer | D13: 50 | E13: 50 | F13: 49 | G13: 49
A14: 76-0 | B14: 0 | C14: Preference-related logic for defaults | D14: 0 | E14: 0 | F14: 0 | G14: 0
A15: 77-0 | B15: 1 | C15: Lock Logic - Carts, Quote Changes, etc - | D15: 0 | E15: 0 | F15: 0 | G15: 0
A16: 79-0 | B16: 5 | C16: Performance Optimization / Server Response Issues | D16: 0 | E16: 0 | F16: 0 | G16: 0
A17: 80-0 | B17: 1 | C17: Picking Slip | D17: 12 | E17: 12 | F17: 0 | G17: 0
A18: 84-0 | B18: 5 | C18: Send Customer Back to Site Based on Email Link | D18: 0 | E18: 0 | F18: 0 | G18: 0
A19: 31-0 | B19: 99 | D19: 0 | E19: 0 | F19: 0 | G19: 0
A20: 89-0 | B20: 0 | C20: Modal Windows Rules | D20: 0 | E20: 0 | F20: 0 | G20: 0

Sheet DataConversions
A1: Task Nbr | B1: Status | C1: Programming Task Description | D1: DB Hours | E1: DB Rem | F1: UI Hours | G1: UI Rem | H1: Avante | I1: UI | J1: QA | L1: Status/Notes
D2: Avante | F2: UI | H2: Rework
C3: =Summary!A1 -> Status as of 1/9/14
A4: DataConversions | C4: Total Hours | D4: =SUM(D5:D65536) -> 77 | E4: =SUM(E5:E65536) -> 74 | F4: =SUM(F5:F65536) -> 0 | G4: =SUM(G5:G65536) -> 0
A5: 78-0 | B5: 0 | C5: Conversion Programs | D5: 77 | E5: 74 | F5: 0 | G5: 0

Sheet MyAccount
A1: Task Nbr | B1: Status | C1: Programming Task Description | D1: DB Hours | E1: DB Rem | F1: UI Hours | G1: UI Rem | H1: Avante | I1: UI | J1: QA | L1: Status/Notes
D2: Avante | F2: UI | H2: Rework
C3: =Summary!A1 -> Status as of 1/9/14
A4: MyAccount | C4: Total Hours | D4: =SUM(D5:D65536) -> 0 | E4: =SUM(E5:E65536) -> 0 | F4: =SUM(F5:F65536) -> 0 | G4: =SUM(G5:G65536) -> 0
A5: 4-0 | B5: 3 | C5: Process at Login - Deleting Expired Carts | D5: 0 | E5: 0 | F5: 0 | G5: 0

Sheet Note-Questions
A1: Results | B1: Originally we had a line item for Results on the Summary page. Having reviewed the Shop/Results area with
B2: Ed we combined all incomplete functions into one page called ShopWidget. Need to review with JP to be
B3: sure there is no missing functionality.
A6: Miscellaneous | B6: ***Investigate what Avante Reports/Processes are using configurator files to extract data.
B7: I am looking for a list of processes that will require changes when the BAGS/SHEETING/FURN, etc
B8: product lines are combined into a single MOD product line. This means that criteria numbers
B9: may change:
B10: - Search IIPROCESS/BP/LDLIB/AVBP looking for CFQNA<13,x> extractions
B11: - Search IIPROCESS/BP/LDLIB/AVBP looking for CFORDER<13,x> extractions
B12: - Search IIPROCESS/BP/LDLIB/AVBP looking for CFBLDHDR<10,x> extractions
A14: Miscellaneous | B14: ***Investigate/writeup design to only allow NS Made/Buy quotes to be entered via QUO4000. Is there an
B15: easy way to disable the other selections BAGS/SHEETING/TUBING/FURN from the screens? Or should
B16: we bypass the screens entirely and only allow NS as an item number in this screen?
A18: Miscellaneous | B18: ***Investigate how 'shipping notifications' could be sent to customers notifying them that their shipment
B19: has been made:
B20: - Timing - should this be done when updating Avante? What if shipment hasn’t left building yet?
B21: - What email address to use?
B22: - What if customer doesn't accept emails?
B23: - Should notifications be sent for all shipments? CPU's?
A25: Miscellaneous | B25: Investigate what changes will be needed for the new FOB CODE "CPU". I believe CPU (customer pickup)
B26: should follow the rules for COL/3PB in that they have no freight implications. Be sure to check the
B27: freight quote/freight$ calculation programs to make sure that CPU will not go through this logic.
B28: Investigate what should happen with CPU credit card orders -- should they be handled like PPD?

Sheet Defs
A1: Avante Programmers: Wayne, Joe, Janice @ 80% | B1: 2.4
A2: UI Programmers: Ed, Sal @ 80% | B2: 1.6
A3: Technical Designers: John, Judy @ 75% ; Jim, Cathy @ 25% | B3: 2
A4: QA/Test: Susan, Steve, Jim, Owen, Cathy, CE, Mktg

Sheet ToDo
A1: Tab | B1: Task Nbr | C1: Dt Added | D1: Status | E1: Designer | F1: Programming Task Description | G1: Pty | H1: DB Pgmr | I1: DB Hours | J1: DB Rem | K1: UI Pgmr | L1: UI Hours | M1: UI Rem | N1: Wiki Programing Document Spec Name | O1: Dt Assigned | P1: St Date
A2: Key to Reporting | B2: 0-0 | D2: =MIN(D3:D10) -> 0 | F2: Status'
B3: 0-1 | D3: 0 | F3: 0 = Awaiting Info - can't design yet
B4: 0-2 | D4: 1 | F4: 1 = Ready to Design
B5: 0-3 | D5: 2 | F5: 2 = Ready for Program
B6: 0-4 | D6: 3 | F6: 3 = In QA
B7: 0-5 | D7: 4 | F7: 4 = Done
B8: 0-6 | D8: 5 | F8: 5 = Investigation
B9: 0-7 | D9: 80 | F9: 80 = Bug Fixes
B10: 0-8 | D10: 99 | F10: 99 = Reserved for Future Use
A11: ShopWidget | B11: 1-0 | D11: =MIN(D12:D14) -> 4 | F11: Avante - Changes for Rolls, Rolls Cradle packed, Rolls Boxed | I11: =SUM(I12:I14) -> 0 | J11: =SUM(J12:J14) -> 0 | L11: =SUM(L12:L14) -> 0 | M11: =SUM(M12:M14) -> 0 | Q11: Show just "Rolls" in packaging section so we can show the user Rolls Boxed and Rolls Cradlepacked in results as exact matches.
B12: 1-1 | C12: 2013-11-25 | D12: 4 | E12: Judy | F12: Modify Packaging Group Description | H12: Joe | J12: 0
B13: 1-2 | C13: 2013-11-25 | D13: 4 | E13: Judy | F13: Modify Packaging Default Value | H13: Joe | J13: 0
B14: 1-3 | D14: 99 | F14: Reserved for Future Use
A15: SavedItems | B15: 2-0 | D15: =MIN(D16:D39) -> 1 | F15: New customer part number logic | I15: =SUM(I16:I39) -> 37 | J15: =SUM(J16:J39) -> 31 | L15: =SUM(L16:L39) -> 6 | M15: =SUM(M16:M39) -> -0.5 | Q15: including cart logic hover over our part# to see customer part#. Assigning customer part numbers from Saved Items Popup and calling that popup from the Labeling step of checkout, then refreshing labeling screen when they are done with that popup.
B16: 2-1 | C16: 2013-11-25 | D16: 99 | F16: Reserved for Future Use
B17: 2-2 | C17: 2013-11-25 | D17: 3 | E17: John | F17: UI - Update Checkout Label View | K17: Francisco
B18: 2-3 | C18: 2013-11-25 | D18: 3 | E18: John | F18: UI - Update Saved Items View | K18: Sal | L18: 1 | M18: 0 | Q18: Interfacing that if the customer has a customer item number then bring ack that info
B19: 2-4 | C19: 2013-11-25 | D19: 3 | E19: John | F19: UI - code retrieval of customer items from Database | K19: Sal | L19: 1 | M19: 0 | Q19: save item popup - display existing customer item number for stock or MOD
B20: 2-5 | C20: 2013-11-25 | D20: 3 | E20: John | F20: UI - code save of customer items to Database | K20: Sal | L20: 1 | M20: 0 | Q20: saves item
B21: 2-6 | C21: 2013-11-25 | D21: 3 | E21: John | F21: DB - RPC to return customer items to web | H21: Joe | J21: 0
B22: 2-7 | C22: 2013-11-25 | D22: 3 | E22: John | F22: DB - RPC to save customer items to database | H22: John | I22: 3 | J22: 3 | Q22: needs to update cross ref and check to see if iems are getting written correcty
B23: 2-8 | C23: 2013-11-25 | D23: 3 | E23: Cathy | F23: Conversion - convert items | H23: Cathy | I23: 4 | J23: 4 | N23: Programming Specs - Customer Part Numbers | Q23: new format for customer item numbers (custom and combine 3 description lines to 2
B24: 2-9 | C24: 2013-11-25 | D24: 99 | F24: Reserved for Future Use
B25: 2-10 | C25: 2013-11-25 | D25: 3 | E25: Cathy | F25: Avante - Modify the Customer Item Number Upload - Part I | H25: Joe | J25: 0 | N25: Programming Specs - Customer Part Numbers | O25: 2013-12-26 | Q25: change to write the new CUSTPARTXREF.USR record
B26: 2-11 | C26: 2013-11-25 | D26: 3 | E26: John | F26: Duplicate Customer Names | K26: Sal | M26: 0 | Q26: We concatenated the city and state to the name for display
B27: 2-12 | C27: 2013-11-25 | D27: 3 | E27: Cathy | F27: Avante - Modify Existing Programs to Use CUSTPARTXRF.USR - Part II | H27: Joe | J27: 0 | N27: Programming Specs - Customer Part Numbers | O27: 2013-12-26 | Q27: Format for custpart.usr will now have key for custom items to be co*cust*MODnnnn
B28: 2-13 | C28: 2013-11-25 | D28: 3 | E28: Cathy | F28: Avante - Program to create CUSTPARTXRF.USR - Part I | H28: Joe | J28: 0 | N28: Programming Specs - Customer Part Numbers | O28: 2013-12-26 | Q28: Create CUSTPARTXRF.USR for existing items
B29: 2-14 | C29: 2013-11-25 | D29: 3 | E29: Cathy | F29: Avante - Customer Item Number Maintenance - Part I | H29: Joe | J29: 0 | N29: Programming Specs - Customer Part Numbers | O29: 2013-12-26 | Q29: change to write the new CUSTPARTXREF.USR record
B30: 2-15 | C30: 2013-11-25 | D30: 1 | E30: Cathy | F30: Avante - Customer Item Number Maintenance - Part II | H30: Cathy | I30: 2 | J30: 2 | N30: Programming Specs - Customer Part Numbers | O30: 2013-12-26 | Q30: Modify for the MOD item from Cpartnumber key change
B31: 2-16 | C31: 2013-11-25 | D31: 1 | E31: Cathy | F31: Avante - Customer Item Number Upload - Part II | H31: Cathy | I31: 2 | J31: 2 | N31: Programming Specs - Customer Part Numbers | O31: 2013-12-26 | Q31: Modify for the MOD item from Cpartnumber key change
B32: 2-17 | D32: 2 | E32: Judy | F32: DB - Create routine WEB.CREATE.CUSTOMER | H32: Wayne | I32: 10 | J32: 4 | N32: Programming Specs - Create/Modify Drop Ship Customer | O32: 2014-01-31 | Q32: Assign customer number and write to CUSTMST with billto defaults, no address and set inactive flag or update the existing customer. Update customer preferences flagged in shipping instructions.
B33: 2-18 | D33: 2 | E33: Judy | F33: DB - Modify Existing RPC$SHOPPINGCART_CREATEORDER | H33: Wayne | I33: 8 | J33: 8 | N33: Programming Specs - Create/Modify Drop Ship Customer | O33: 2014-01-31 | Q33: remove the logic and call the routine - logic must be moved out of stockcreate and into main program & called before stock/MOD orders are created
B34: 2-19 | D34: 2 | E34: Judy | F34: DB - New RPC Called RPC$CUSTOMER_CREATE | H34: Wayne | I34: 4 | J34: 4 | N34: Programming Specs - Create/Modify Drop Ship Customer | O34: 2014-01-31 | Q34: web will call this program when it needs a customer created and will return all information back to the site
B35: 2-20 | D35: 2 | E35: John | F35: UI - Call RPC$CUSTOMER_CREATE when adding saved item locations | K35: Sal | L35: 3 | M35: -0.5 | N35: https://laddawn1.atlassian.net/wiki/display/web/Adding+Location+Tags | P35: 2014-02-27T09:00:00
B36: 2-21 | D36: 5 | E36: Judy | F36: Avante - Investigate Inactive Flag Handling on Selects and Validations | H36: Judy | I36: 2 | J36: 2
B37: 2-22 | D37: 2 | E37: John | F37: UI - Address Checkout, catch user selected blank customer. Show form. | N37: https://laddawn1.atlassian.net/wiki/display/web/Converting+Locations+to+Customers | Q37: The user will be allowed to selected a customer that does not have enough data on it. We need to trap that and display entry form to allow user to fill out the rest of the info for that customer. Duplicated on 8-5.
B38: 2-23 | D38: 2 | E38: Judy | F38: DB - Change cust selection when coming from Address Screen | H38: Wayne | I38: 2 | J38: 2 | N38: Programming Specs - Create/Modify Drop Ship Customer | O38: 2014-02-03 | Q38: Change CUSTOMER_GETBYFILTER to add ZIP = "" when coming from the Checkout Address Screen (FLAG will be a "1")
B39: 2-24 | D39: 99 | F39: Reserved for Future Use
A40: SavedItems | B40: 3-0 | D40: =MIN(D41:D55) -> 3 | F40: Change the saved items record key | I40: =SUM(I41:I55) -> 0 | J40: =SUM(J41:J55) -> 0 | L40: =SUM(L41:L55) -> 0 | M40: =SUM(M41:M55) -> 0 | Q40: From Contact to Bill-to Number --- Changing the location that the saved MOD items are stored, and changing file structure and programs to use the new structure. Including "finding" an existing MOD item from the Shop widget to pull up existing MOD items based on configuration.
B41: 3-1 | C41: 2013-11-25 | D41: 3 | E41: John | F41: DB - Create file to hold Mod Item Specification by Bill-to | H41: Joe | J41: 0
B42: 3-2 | C42: 2013-11-25 | D42: 3 | E42: John | F42: DB - Modify File Structure for Contact Item information | H42: Joe | J42: 0
B43: 3-3 | C43: 2013-11-25 | D43: 3 | E43: John | F43: DB - RPC$MODITEM_CREATE | H43: Joe | J43: 0 | Q43: Update saving of MOD items
B44: 3-4 | C44: 2013-11-25 | D44: 3 | E44: John | F44: DB - RPC$CONTACTITEM_DELETE | H44: Joe | J44: 0 | Q44: Delete Billto Level data as well?
B45: 3-5 | C45: 2013-11-25 | D45: 3 | E45: John | F45: DB - RPC$CONTACTITEM_GETBYFILTER | H45: Joe | J45: 0 | Q45: Pull info from billto level & Contact level
B46: 3-6 | C46: 2013-11-25 | D46: 3 | E46: John | F46: DB - RPC$CONTACTITEM_GETBYID | H46: Joe | J46: 0 | Q46: Pull Info from billto level & Contact Level
B47: 3-7 | C47: 2013-11-25 | D47: 3 | E47: John | F47: DB - RPC$CONTACTITEM_SAVE | H47: Joe | J47: 0
B48: 3-8 | C48: 2013-11-25 | D48: 3 | E48: John | F48: DB - RPC$ITEMTAG_GETBYFILTER | H48: Joe | J48: 0
B49: 3-9 | C49: 2013-11-25 | D49: 3 | E49: John | F49: DB - RPC$ITEMTAG_GETBYFILTER2 | H49: Joe | J49: 0
B50: 3-10 | C50: 2013-11-25 | D50: 3 | E50: John | F50: DB - RPC$ITEMTAG_SELECT | H50: Joe | J50: 0
B51: 3-11 | C51: 2013-11-25 | D51: 3 | E51: John | F51: DB - RPC$QUOTEITEM_GETBYSAVEDITEM | H51: Joe | J51: 0
B52: 3-12 | C52: 2013-11-25 | D52: 3 | E52: John | F52: DB - RPC$SHAREDITEM_GETBYFILTER | H52: Joe | J52: 0
B53: 3-13 | C53: 2013-11-25 | D53: 3 | E53: John | F53: DB - RPC$SHAREDITEM_SAVE | H53: Joe | J53: 0
B54: 3-14 | C54: 2013-11-25 | D54: 3 | E54: John | F54: DB - RPC$SHIPMENTBUNDLING_GETBYFILTER | H54: Joe | J54: 0
B55: 3-15 | D55: 99 | F55: Reserved for Future Use
A56: MyAccount | B56: 4-0 | D56: =MIN(D57:D59) -> 3 | F56: Process at Login - Deleting Expired Carts | I56: =SUM(I57:I59) -> 3 | J56: =SUM(J57:J59) -> 0 | L56: =SUM(L57:L59) -> 0 | M56: =SUM(M57:M59) -> 0 | Q56: Purging "old" carts upon login based on time since last activity date. What defines "old" is a system wide setting.
B57: 4-1 | D57: 3 | E57: John | F57: DB - Write Last Activity Date to SHOPPINGCART.USR | H57: Joe | I57: 1.5 | J57: 0 | N57: https://laddawn1.atlassian.net/wiki/display/web/Functional+Spec.+-+Write+Cart+Last+Activity+Date | O57: 2014-01-15
B58: 4-2 | D58: 3 | E58: John | F58: DB - Delete old carts upon user validation based on xxx days old | H58: Joe | I58: 1.5 | J58: 0 | N58: https://laddawn1.atlassian.net/wiki/pages/viewpage.action?pageId=27754595 | O58: 2014-01-15 | Q58: Can carts be deleted by anyone other than the user that created them?
B59: 4-3 | D59: 99 | F59: Reserved for Future Use
A60: Checkout | B60: 5-0 | D60: =MIN(D61:D63) -> 3 | F60: Duplicate P/O display in Checkout | I60: =SUM(I61:I63) -> 0 | J60: =SUM(J61:J63) -> 0 | L60: =SUM(L61:L63) -> 0 | M60: =SUM(M61:M63) -> 0 | Q60: A popup showing the other orders this PO number is used on. Called from Payment screen of checkout.
B61: 5-1 | D61: 3 | E61: John | F61: Create Pop-up for Duplicate PO numbers | K61: Sal | M61: 0
B62: 5-2 | D62: 3 | E62: John | F62: Handle user response to pop-up | K62: Francisco
B63: 5-3 | D63: 99 | F63: Reserved for Future Use
A64: Checkout | B64: 6-0 | D64: =MIN(D65:D84) -> 1 | F64: Order Creation | I64: =SUM(I65:I84) -> 35.5 | J64: =SUM(J65:J84) -> 25 | L64: =SUM(L65:L84) -> 0 | M64: =SUM(M65:M84) -> 0 | Q64: Separating bundles to Avante orders and create a master order. Includes number assignment scheme.
B65: 6-1 | D65: 3 | E65: Judy | F65: Determine How To Create Orders from Bundles
B66: 6-2 | D66: 3 | E66: Judy | F66: Create orders from Bundles | H66: Wayne | J66: -2
B67: 6-3 | D67: 3 | E67: Judy | F67: Order Creation - Ship With Logic (ship with comment) | H67: Wayne | J67: 0 | O67: 2013-12-30
B68: 6-4 | D68: 3 | E68: Judy | F68: Order Creation - Setting FOB Code for Customer Pickup | H68: Wayne | J68: 0 | O68: 2013-12-02 | P68: 2013-12-02
B69: 6-5 | D69: 3 | E69: Judy | F69: ‘Must Ship Today Flag’ | H69: Wayne | J69: 0 | O69: 2013-12-02 | P69: 2013-12-02 | Q69: setting on order based on time of day and bundle ship date
B70: 6-6 | D70: 3 | E70: Judy | F70: Order source when ce enters order | H70: Wayne | J70: 0
B71: 6-7 | D71: 3 | E71: Judy | F71: Creating a new Shipto Customer | H71: Wayne | J71: 0
B72: 6-8 | D72: 3 | E72: Judy | F72: Write cart name to SOHDR.USR | H72: Wayne | J72: 0
B73: 6-9 | D73: 5 | E73: Judy | F73: Move MOD ‘ashad' and order shipping preference comments | Q73: ‘ashad’ comments and order shipping preference comments forward to new order
B74: 6-10 | D74: 3 | E74: Judy | F74: Add Pallet Type as a w/o comment for MOD Orders | H74: Wayne | J74: 0 | O74: 2013-12-30 | Q74: Pallet Type (from shipping preferences) must be added as a w/o comment for MOD Orders
B75: 6-11 | C75: 2013-12-19 | D75: 2 | E75: Judy | F75: Add 'Backordered' or 'Ship Complete' comment to order w/backorder | H75: Wayne | I75: 4 | J75: 1 | N75: Create Order from Checkout | O75: 2013-12-30 | Q75: For ship and b/o bundles, put 'Backorder' comment on the backordered order and nothing on main order. For default bundle shipping everything in 3 days (because of b/o), put a 'ship complete' comment on the order.
B76: 6-12 | C76: 2013-12-30 | D76: 2 | E76: Judy | F76: Write Shipping Instruction Comments to Sales Order | H76: Wayne | I76: 4 | J76: 2 | N76: Create Order from Checkout
B77: 6-13 | C77: 2014-01-03 | D77: 1 | E77: Judy | F77: Write w/o comment for 'no wooden slats' on Export Pallet jobs | H77: Judy | I77: 4 | J77: 4 | Q77: comment automatically goes on work orders for export pallet jobs to NOT use untreated wooden slats
B78: 6-14 | D78: 2 | E78: Judy | F78: Write MOD Item# to SOHDR.USR when converting a quote | H78: Wayne | I78: 0.5 | J78: 0.5
B79: 6-15 | D79: 1 | E79: Judy | F79: Write cc'd contacts to sales order | H79: Cathy | I79: 4 | J79: 4
B80: 6-16 | D80: 2 | E80: Judy | F80: Write upcharges to each order as revenue charge codes | H80: Wayne | I80: 10 | J80: 10 | N80: Create Order from Checkout 02/05/14 | O80: 2014-02-05 | Q80: Call WEB.CALC.UPCHARGES and write each upcharge to order using revenue charge codes
B81: 6-17 | D81: 2 | E81: Judy | F81: Determine Bundle Type for SHIP COMPLETE/BACKORDER comments | H81: Wayne | I81: 4 | J81: 0.5 | N81: Create Order from Checkout 02/04/14 | O81: 2014-02-04 | Q81: Determine the bundle type based on bundle qty compared to qty ordered, bundle date, and future date. Will be used to add SHIP COMPLETE and BACKORDER comments to orders.
B82: 6-18 | D82: 2 | E82: Judy | F82: Invoice Update-Charge every shipment for Chg Type "99" | H82: Wayne | I82: 3 | J82: 3 | N82: Create Order from Checkout 02/05/14 | O82: 2014-02-05 | Q82: When invoicing revenue charge codes, charge every shipment if charge code type = 99
B83: 6-19 | D83: 2 | E83: Judy | F83: Charge Code Validation - Allow type 99 on orders | H83: Wayne | I83: 2 | J83: 2 | N83: Create Order from Checkout 02/05/14 | O83: 2014-02-05 | Q83: Allow revenue charge codes on an order if type is "99". Currently only allows types 1 and 2.
B84: 6-20 | D84: 99 | F84: Reserved for Future Use
A85: Checkout | B85: 7-0 | D85: =MIN(D86:D98) -> 1 | F85: Checkout - Labeling | I85: =SUM(I86:I98) -> 10 | J85: =SUM(J86:J98) -> 4 | L85: =SUM(L86:L98) -> 6 | M85: =SUM(M86:M98) -> 6 | Q85: Completion of the Labeling step of checkout process.
B86: 7-1 | D86: 3 | E86: John | F86: Validations | K86: Francisco | Q86: customer part number required, third party, Brandit customer setup
B87: 7-2 | D87: 3 | E87: Judy | F87: DB - Update Labeling to SHOPPINGCART.USR | H87: Joe | I87: 6 | J87: 0 | N87: Programming Spec-Checkout Label Screen Updating | O87: 2014-02-05 | P87: 2014-02-05 | Q87: When user selects Save & Continue, update the SHOPPINGCART.USR record with all labeling info in RPC$SHOPPINGCART_SAVE. Includes setup of NAMED PARAMS and dictionaries
B88: 7-3 | D88: 3 | E88: John | F88: Interface with Bartender to Generate Label Images | K88: Francisco
B89: 7-4 | D89: 3 | E89: John | F89: Set Up Paging to Step from Label to Label. | K89: Francisco
B90: 7-5 | D90: 1 | E90: John | F90: Interface with Saved Items Popup. | K90: John | L90: 4 | M90: 4 | Q90: pull up saved items popup with the correct tagging
B91: 7-6 | D91: 3 | E91: John | F91: Refresh Label Image as Needed. | K91: Francisco
B92: 7-7 | D92: 3 | E92: John | F92: DB - Retrieve Customer Part Number Information. | H92: Joe | I92: 4 | J92: 4 | Q92: pull customer part number and description onto the label
B93: 7-8 | D93: 3 | E93: John | F93: Return Brandit Information as Customer Object Properties | K93: Francisco
B94: 7-9 | D94: 3 | E94: John | F94: Show Correct Options for Label Format | K94: Francisco | Q94: label type on top, check box options below, actual part numbers
B95: 7-10 | D95: 1 | E95: CHRIS | F95: Creation of New Label Templates
B96: 7-11 | D96: 3 | E96: John | F96: Handle Adding Label Comment | K96: Francisco
B97: 7-12 | D97: 1 | E97: John | F97: UI - Retrieve Customer Part Number Information | K97: John | L97: 2 | M97: 2
B98: 7-13 | D98: 99 | F98: Reserved for Future Use
A99: Checkout | B99: 8-0 | D99: =MIN(D100:D107) -> 1 | F99: Checkout - Addresses | I99: =SUM(I100:I107) -> 4 | J99: =SUM(J100:J107) -> 4 | L99: =SUM(L100:L107) -> 10 | M99: =SUM(M100:M107) -> 8 | Q99: First step of the checkout process. Where the user selects or adds the ship to address.
B100: 8-1 | D100: 4 | E100: Judy | F100: Check Create Order F2 validations | H100: Judy | I100: 0 | J100: 0 | Q100: only diff is that zip code is entered, then city/state is defaulted from ZIPCODE.USR
B101: 8-2 | D101: 3 | E101: Judy | F101: Update SHOPPINGCART.USR | H101: Wayne | J101: 0
B102: 8-3 | D102: 3 | E102: John | F102: Verify that ship-to zip matches cart zip (in case of zip code change) | K102: Francisco
B103: 8-4 | D103: 1 | E103: Judy | F103: Handle changing of Ship-to | H103: Judy | I103: 4 | J103: 4 | Q103: changing of customer number - after getting to summary page - could have some FOB, VIA, or shipping preferences - if shipto.nbr # customer in cart then null out everything except the payment screen info
B104: 8-5 | D104: 2 | E104: John | F104: UI - Handle "TAGGED SHIPTO" | K104: Ed | L104: 8 | M104: 6 | Q104: selecting customer that was just "tagged" but is not a valid customer - has no address
B105: 8-6 | D105: 4 | E105: Judy | F105: Dupe of 2-23 **DB - Handle "TAGGED SHIPTO" | H105: Judy | I105: 0 | J105: 0 | Q105: selecting customer that was just "tagged" but is not a valid customer - has no address *** taken care of in 2-23
B106: 8-7 | D106: 2 | E106: John | F106: Save Screen values to shopping cart in DB | K106: Ed | L106: 2 | M106: 2 | N106: https://laddawn1.atlassian.net/wiki/pages/viewpage.action?pageId=28409921 | Q106: Clicking save and continue on this step needs to save the options to the database
B107: 8-8 | D107: 99 | F107: Reserved for Future Use
A108: Checkout | B108: 9-0 | D108: =MIN(D109:D112) -> 1 | F108: Checkout - Payment | I108: =SUM(I109:I112) -> 0 | J108: =SUM(J109:J112) -> 0 | L108: =SUM(L109:L112) -> 5 | M108: =SUM(M109:M112) -> 5 | Q108: Checkout Payment step. Display / Validate / save.
B109: 9-1 | D109: 3 | E109: Judy | F109: Check Create Order F2 validations | Q109: **done-only diff is CC Name s/b reqd & Exp Date shouldn't default - UI??
B110: 9-2 | D110: 3 | E110: John | F110: Make sure all validations from existing website are in new website (UI?)
B111: 9-3 | D111: 1 | E111: John | F111: Redesign Payment View to new specifications | K111: John | L111: 5 | M111: 5
B112: 9-4 | D112: 99 | F112: Reserved for Future Use
A113: Checkout | B113: 10-0 | D113: =MIN(D114:D118) -> 1 | F113: Checkout - Giving | I113: =SUM(I114:I118) -> 6 | J113: =SUM(J114:J118) -> 6 | L113: =SUM(L114:L118) -> 2 | M113: =SUM(M114:M118) -> 2 | Q113: Checkout Giving Page
B114: 10-1 | D114: 3 | E114: Judy | F114: Check Create Order F2 validations - | Q114: *** NO GIVING SCREEN ON AVANTE SO NOT NEEDED -
B115: 10-2 | D115: 3 | E115: Judy | F115: Update SHOPPINGCART.USR | H115: Wayne | J115: 0
B116: 10-3 | D116: 1 | E116: John | F116: UI - hook up response to the order | K116: John | L116: 2 | M116: 2
B117: 10-4 | D117: 1 | E117: John | F117: DB - hook up response to the order | H117: John | I117: 6 | J117: 6
B118: 10-5 | D118: 99 | F118: Reserved for Future Use
A119: Checkout | B119: 11-0 | D119: =MIN(D120:D140) -> 1 | F119: Checkout - Bundling View | I119: =SUM(I120:I140) -> 94 | J119: =SUM(J120:J140) -> 43 | L119: =SUM(L120:L140) -> 30 | M119: =SUM(M120:M140) -> 30 | Q119: Complete Bundling page of checkout.
B120: 11-1 | D120: 3 | E120: Judy | F120: Bundling Validation - Ship Via | H120: Wayne | J120: 0
B121: 11-2 | D121: 3 | E121: Judy | F121: Bundling Validation - Freight Terms | H121: Wayne | J121: 0
B122: 11-3 | D122: 3 | E122: Judy | F122: Bundling Validation - Ship Date | H122: Wayne | J122: 0
B123: 11-4 | D123: 3 | E123: Judy | F123: Update Bundling to SHOPPINGCART.USR | H123: Janice | J123: 0 | N123: checkout 'save' updating | P123: 2013-12-11 | Q123: Update all bundling info to SHOPPINGCART.USR
B124: 11-5 | D124: 3 | E124: Judy | F124: Avante-Comments Maint Screen (Ship Instr) | H124: Janice | J124: 0 | N124: checkout shipping instructions | P124: 2013-12-11 | Q124: Create new web sub-screen from SYS9012
B125: 11-6 | D125: 3 | E125: Judy | F125: DB-WEB.COMMENTS.READ (Ship Instr) | H125: Janice | J125: 0 | N125: checkout shipping instructions | P125: 2013-12-11 | Q125: Global prgm to read/return all data from COMMENTS.USR
B126: 11-7 | D126: 3 | E126: Judy | F126: DB-RPC$COMMENTS_GETBYFILTER (Ship Instr | H126: Janice | J126: 0 | N126: checkout shipping instructions | P126: 2013-12-11 | Q126: Pass all shipping instruction comments from select list by section to UI
B127: 11-8 | D127: 3 | E127: Judy | F127: DB-RPC$COMMENTS_GETBYID (Ship Instr | H127: Janice | J127: 0 | N127: checkout shipping instructions | P127: 2013-12-11 | Q127: Pass single shipping instruction comment to UI
B128: 11-9 | D128: 3 | E128: Judy | F128: DB-Save & Continue Updating | H128: Janice | J128: 0 | N128: checkout shipping instructions | P128: 2013-12-11 | Q128: Update shipping instructions to SHOPPINGCART.USR
B129: 11-10 | D129: 1 | E129: John | F129: preserve (ship via, fob, ship inst) when merging and splitting bundles | H129: John | I129: 32 | J129: 32 | Q129: Work needed to preserve (ship via, fob, ship inst) when merging and splitting bundles - if they split we preserve the same comments - run through defaults if freght terms change - if merging retain preference from merge "to" bundle
B130: 11-11 | C130: 2013-12-24 | D130: 2 | E130: Judy | F130: DB-Shipping Instructions Enabling/Default Values & Comment Scrn Chng | H130: Janice | I130: 8 | J130: 0 | N130: checkout shipping instructions | Q130: Send Enabled/Disabled & Default Value for each comment in Shipping Instruct & Add Revenue Chg Code to Comm Scrn
B131: 11-12 | C131: 2013-12-30 | D131: 3 | E131: John | F131: UI Call Bundling Routines to fill screens from DB | K131: Francisco
B132: 11-13 | D132: 1 | E132: John | F132: UI - Handle Collect and 3PB Freight Terms with Popup | K132: John | L132: 18 | M132: 18 | Q132: enter third party information
B133: 11-14 | D133: 1 | E133: John | F133: UI - Call RPC$COMMENTS_GETDEFAULTS | K133: John | L133: 10 | M133: 10 | Q133: Call for every bundle
B134: 11-15 | D134: 2 | E134: Judy | F134: DB - Call SOPS4007.5PS to establish LTL.FLAG | H134: Janice | I134: 20 | J134: 4 | N134: checkout shipping instructions (01/28/14) | O134: 2014-01-28 | Q134: Determine whether this bundle will be shipped LTL or Small Pkg using same logic as in Create Pickslips & update the bundle with the LTL.FLAG
B135: 11-16 | D135: 2 | E135: Judy | F135: DB - RPC$COMMENTS_GETDEFAULTS | H135: Janice | I135: 18 | J135: 3 | N135: checkout shipping instructions (01/28/14) | O135: 2014-01-28 | Q135: Return comments for give billto , shipto, LTL / sm pkg -
B136: 11-17 | D136: 1 | E136: John | F136: UI - Disable access to Comments PopUp based on Flag | K136: John | L136: 2 | M136: 2 | Q136: if bundle going small pkg disable link
B137: 11-18 | D137: 4 | E137: Judy | F137: DUPE - Handle Setting Preference from Bundling When Create Order is Run | H137: Judy | I137: 0 | J137: 0 | Q137: ***duplicate - already taken care of in 2-17 *** Set the preference when we save the customer
B138: 11-19 | C138: 2014-01-29 | D138: 3 | E138: Judy | F138: DB - Availability Logic - Allow for Offline Warehouses | H138: Janice | I138: 0 | J138: 0 | Q138: *** Janice already had this in the bundling logic - removed hours*** Apply logic that is in current site that re-routes orders to an alternate warehouse if they are offline (in SYSCON OFFLINE.WHS.LAD field 1)
B139: 11-20 | D139: 4 | E139: Judy | F139: DB - Write bundle type to shoppingcart.usr | H139: Janice | I139: 16 | J139: 4 | N139: Write bundle type: 1=backorder; 2=ship complete; 3=other | O139: 2014-01-29 | Q139: *** 02/04/14 THIS WAS PUT ON WAYNE'S LIST - CLOSE JANICE'S TASK ….Write a bundle type to shoppingcart.usr so that order creation program can add a SHIP COMPLETE or BACKORDER comment, if needed
B140: 11-21 | D140: 99 | F140: Reserved for Future Use
A141: ActiveCart | B141: 12-0 | D141: =MIN(D142:D147) -> 3 | F141: Cart - Handle Price expiration of MOD items | I141: =SUM(I142:I147) -> 0 | J141: =SUM(J142:J147) -> 0 | L141: =SUM(L142:L147) -> 0 | M141: =SUM(M142:M147) -> 0 | Q141: The active cart tab shows the customer what items still have "active" pricing, or pricing that will expire soon. This is about showing the customer the correct cues about their pricing on MOD items.
B142: 12-1 | D142: 3 | E142: John | F142: Create a view for Mod Items | K142: Ed | M142: 0
B143: 12-2 | D143: 3 | E143: John | F143: Establish the state of the view and show correct clock icon | K143: Ed | M143: 0
B144: 12-3 | D144: 3 | E144: John | F144: Disable Controls for expired items | K144: Ed | M144: 0
B145: 12-4 | D145: 3 | E145: John | F145: Creating New Quote from Expired Quote | K145: Ed | M145: 0 | Q145: Create a new quote from expired quote and save new quote to SHOPPINGCART.USR and remove old
B146: 12-5 | D146: 3 | E146: Judy | F146: DB - Mod item repricing | H146: Janice | J146: 0
B147: 12-7 | D147: 99 | F147: Reserved for Future Use
A148: ActiveCart | B148: 13-0 | D148: =MIN(D149:D151) -> 1 | F148: Cart - Repricing MOD items in the cart. | I148: =SUM(I149:I151) -> 0 | J148: =SUM(J149:J151) -> 0 | L148: =SUM(L149:L151) -> 0 | M148: =SUM(M149:M151) -> 0 | Q148: Changing Zip Code, CPU, QTY, Freight Option on the cart will trigger a repricing of the MOD item by calling the pricing routine with the correct flags. A subset of 17-0
B149: 13-1 | D149: 3 | E149: John | F149: Call repricing routine and update existing quote | H149: Janice | J149: 0 | Q149: qty, and freight option changes
B150: 13-2 | D150: 1 | E150: John | F150: Show MOD price break pop-up for MOD items | H150: John | I150: 0 | J150: 0 | Q150: they can change the price breaks from the cart - repricing line reprices price breaks
B151: 13-3 | D151: 99 | F151: Reserved for Future Use
A152: ActiveCart | B152: 14-0 | D152: =MIN(D153:D158) -> 1 | F152: Cart - Handling Zipcode changes in the Cart. | I152: =SUM(I153:I158) -> 10 | J152: =SUM(J153:J158) -> 10 | L152: =SUM(L153:L158) -> 3 | M152: =SUM(M153:M158) -> 0 | Q152: The customer is allowed to change the ZIP code for which the cart is built. This change effects availability dates, primary warehouse selection and MOD pricing.
B153: 14-1 | D153: 3 | E153: John | F153: Update availability dates for stock and mod items | K153: Ed | M153: 0
B154: 14-2 | D154: 3 | E154: John | F154: Reprice the quote for MOD items (if expired it gets new quote) | K154: Ed | M154: 0
B155: 14-3 | D155: 1 | E155: John | F155: DB - Remove checkout address informaton from SHOPPINGCART.USR | H155: John | I155: 5 | J155: 5 | Q155: do we want to clear all or partial
B156: 14-4 | D156: 1 | E156: John | F156: DB - Remove checkout bundling informaton from SHOPPINGCART.USR | H156: John | I156: 5 | J156: 5
B157: 14-5 | D157: 2 | E157: John | F157: UI - Handling Ship-to Zip / Pick-up Changes | K157: Ed | L157: 3 | M157: 0
B158: 14-6 | D158: 99 | F158: Reserved for Future Use
A159: ActiveCart | B159: 15-0 | D159: =MIN(D160:D161) -> 1 | F159: Cart - CE version of contact’s cart (by operator) | I159: =SUM(I160:I161) -> 8 | J159: =SUM(J160:J161) -> 8 | L159: =SUM(L160:L161) -> 0 | M159: =SUM(M160:M161) -> 0 | Q159: While the customer contact is on the website, and CE logs in as that customer, we don't want them conflicting on the same active cart. So CE will need its own version of the cart when logged in as another contact. And different CE users will have to have their own cart.
B160: 15-1 | D160: 1 | F160: DB - Change Shopping Cart Save and Shopping Cart Item Save | H160: John | I160: 8 | J160: 8 | Q160: If there is an operator and no cart name then generate cart name based on a set of rules. CE-Oper (amber) nn (1-999)
B161: 15-2 | D161: 99 | F161: Reserved for Future Use
A162: ActiveCart | B162: 16-0 | D162: =MIN(D163:D168) -> 1 | F162: Cart - New print plate logic (no checkout until approval) | I162: =SUM(I163:I168) -> 0 | J162: =SUM(J163:J168) -> 0 | L162: =SUM(L163:L168) -> 32 | M162: =SUM(M163:M168) -> 32 | Q162: If the MOD item in the cart has a print plate assigned that we do not have the image for the customer must upload the image through the site before being allowed to start the checkout process. This is where they select the PDF on their system and upload it to Laddawn in a status of awaiting approval.
B163: 16-1 | D163: 1 | E163: John | F163: Detect a printed job and show upload link | K163: John | L163: 32 | M163: 32
B164: 16-2 | D164: 1 | E164: Judy | F164: Carts with Plates Must be in their own Cart | H164: Judy | I164: 0 | J164: 0 | Q164: Only if new print plate
B165: 16-3 | D165: 1 | E165: Judy | F165: Upload Plate to Site From Cart | H165: Judy | I165: 0 | J165: 0 | Q165: Allow anyone to upload pdf, assign the plate number and save the pdf
B166: 16-4 | D166: 1 | E166: Judy | F166: Disable Place Order Button on Checkout | H166: Judy | I166: 0 | J166: 0 | Q166: One Bundle - date will change - don’t clear checkout information because order could sit for some time - based on plate flag??
B167: 16-5 | D167: 4 | E167: Judy | F167: 1/16-NO LONGER NEEDED Customer Supplied Plates | H167: Judy | I167: 0 | J167: 0 | Q167: do we need this or not????? 1/16 WEB JAM - NO LONGER NEED THIS LOGIC
B168: 16-6 | D168: 99 | F168: Reserved for Future Use
A169: ActiveCart | B169: 17-0 | D169: =MIN(D170:D172) -> 1 | F169: Cart - Changes to Items in a Cart (add, delete , quantity changes) | I169: =SUM(I170:I172) -> 1 | J169: =SUM(J170:J172) -> 1 | L169: =SUM(L170:L172) -> 4 | M169: =SUM(M170:M172) -> 4 | Q169: A more inclusive statement of 13-0. 13-0 was referring to only MOD items, this is referring to both stock and MOD.
B170: 17-1 | D170: 1 | E170: John | F170: DB - Remove checkout bundling informaton from SHOPPINGCART.USR | H170: John | I170: 1 | J170: 1 | Q170: add change delete based on what is done - this refers to the program in 14-4
B171: 17-2 | D171: 1 | E171: John | F171: Update availability dates for stock and mod items | K171: John | L171: 4 | M171: 4
B172: 17-3 | D172: 99 | F172: Reserved for Future Use
A173: ShopWidget | B173: 18-0 | D173: 3 | F173: Marketplace - When to show MOD Result | I173: =SUM(I174:I177) -> 0 | J173: =SUM(J174:J177) -> 0 | L173: =SUM(L174:L177) -> 12 | M173: =SUM(M174:M177) -> 12 | Q173: In some circumstances (CPU, or Mktplace Price higher than Laddawn stock) orders cannot be Marketplace orders. This is referring to the work needed to ensure that marketplace MOD items are PPD only and a better price or leadtime than the stock item found. Currently all marketplace orders must be PPD.
B174: 18-1 | D174: 3 | E174: Judy | F174: BP WEB.MODITEM.CHECK - for 'Customer Pickup' if Ziptop | H174: Janice | J174: 0 | Q174: If 'Customer Pickup' is chosen for Ziptop, do not create a Marketplace MOD Result
B175: 18-2 | C175: 2014-01-27 | D175: 1 | E175: John | F175: No MOD if one exact import stock match & YMAC MOD is more expensive | K175: John | L175: 0 | M175: 0 | Q175: if there’s one exact stock match, that’s an import, and the YMAC MOD result is more expensive
B176: 18-3 | D176: 2 | E176: John | F176: Marketplace 'import' quote | K176: Ed | L176: 12 | M176: 12 | Q176: Showing a price for an Import Reclosable as a YMAC as well as the domestic.
B177: 18-4 | D177: 99 | F177: Reserved for Future Use
A178: OrderHistory | B178: 19-0 | D178: =MIN(D179:D181) -> 0 | F178: Modify results to handle master orders | I178: =SUM(I179:I181) -> 0 | J178: =SUM(J179:J181) -> 0 | L178: =SUM(L179:L181) -> 0 | M178: =SUM(M179:M181) -> 0 | Q178: Currently Order History brings up list of avante orders. This will need some work to be "master order aware".
B179: 19-1 | D179: 0 | E179: Cathy | F179: Reserved for Future Use | H179: Cathy | I179: 0 | J179: 0
B180: 19-2 | D180: 99 | F180: Reserved for Future Use
B181: 19-3 | D181: 99 | F181: Reserved for Future Use
A182: OrderHistory | B182: 20-0 | D182: =MIN(D183:D185) -> 0 | F182: Complete Summary Popup | I182: =SUM(I183:I185) -> 0 | J182: =SUM(J183:J185) -> 0 | L182: =SUM(L183:L185) -> 0 | M182: =SUM(M183:M185) -> 0 | Q182: When the user clicks summary in Order History tab, this is what they will see.
B183: 20-1 | D183: 0 | E183: Cathy | F183: Reserved for Future Use | H183: Cathy | I183: 0 | J183: 0
B184: 20-2 | D184: 99 | F184: Reserved for Future Use
B185: 20-3 | D185: 99 | F185: Reserved for Future Use
A186: OrderHistory | B186: 21-0 | D186: =MIN(D187:D189) -> 0 | F186: Complete Tracking Popup for all Carriers | I186: =SUM(I187:I189) -> 0 | J186: =SUM(J187:J189) -> 0 | L186: =SUM(L187:L189) -> 0 | M186: =SUM(M187:M189) -> 0 | Q186: Order history tracking popup works for carriers with online tracking tools that do not require a login. This is about how we handle these issues.
B187: 21-1 | D187: 0 | E187: Cathy | F187: Reserved for Future Use | H187: Cathy | I187: 0 | J187: 0
B188: 21-2 | D188: 99 | F188: Reserved for Future Use
B189: 21-3 | D189: 99 | F189: Reserved for Future Use
A190: CEWeb | B190: 22-0 | D190: =MIN(D191:D193) -> 0 | F190: Spinning off multiple requests. | I190: =SUM(I191:I193) -> 0 | J190: =SUM(J191:J193) -> 0 | L190: =SUM(L191:L193) -> 0 | M190: =SUM(M191:M193) -> 0 | Q190: How are we going to handle multiple requests per call. Especially in regards to handling on hold requests and routings.
B191: 22-1 | D191: 0 | E191: Judy | F191: Upon returning to Avante, Create appropriate requests. | H191: Judy | I191: 0 | J191: 0 | Q191: When they get back to Avante they will be looking at the "WEB" request. If there are no transaction requests that need to be created, the WEB request will be saved. If there are other transactions / requests prevent the save of the Web request.
B192: 22-2 | D192: 0 | E192: Judy | F192: Track what the CE User has done, allow them to asign Comments. | H192: Judy | I192: 0 | J192: 0 | Q192: John had an Idea to show them a popup that included a grid of their activities and routing dropdown and a BS Box. Where they choose the activity above and routing below.
B193: 22-3 | D193: 99 | F193: Reserved for Future Use
A194: ShopWidget | B194: 23-0 | D194: =MIN(D195:D198) -> 2 | F194: Default and Validate Zip Code Based on Active Cart | I194: =SUM(I195:I198) -> 0 | J194: =SUM(J195:J198) -> 0 | L194: =SUM(L195:L198) -> 1 | M194: =SUM(M195:M198) -> 0 | Q194: Handling enter and setting focus back to item number box after add button
B195: 23-1 | D195: 3 | E195: John | F195: UI - default zipcode from active cart if any | K195: Ed | M195: 0
B196: 23-2 | D196: 3 | E196: John | F196: UI - Validate the Zip Code when Adding Items | K196: Ed | M196: 0
B197: 23-3 | D197: 2 | E197: John | F197: UI - Changes to the Pop-Up for Zip Code Discrepancies | K197: Ed | L197: 1 | M197: 0 | N197: https://laddawn1.atlassian.net/wiki/display/web/Changes+to+Shop
B198: 23-4 | D198: 99 | F198: Reserved for Future Use
A199: CEWeb | B199: 24-0 | D199: =MIN(D200:D206) -> 1 | F199: Send CE to the Web at the right time. | I199: =SUM(I200:I206) -> 13 | J199: =SUM(J200:J206) -> 13 | L199: =SUM(L200:L206) -> 0 | M199: 0 | Q199: This means not sending to the web other times.
B200: 24-1 | D200: 1 | E200: Judy | F200: DB - There will be a WEB request type. This needs to be created. | H200: Judy | I200: 1 | J200: 1 | Q200: This is a SYSTBL, in that SYSTBL is the name of the Maintenance Process (Can be multiple) and the Display Process.
... 349 more rows

Sheet temp (hidden)
A1: Sal | B1: Task Nbr | C1: Status | D1: Designer | E1: Programming Task Description | F1: Pty | G1: Hours | H1: Rem | I1: Wiki Programing Document Spec Name | J1: Dt Assigned | K1: St Date | L1: F12 | M1: T | N1: F | O1: M | P1: T1 | Q1: W | R1: Week Totals | S1: Prior Totals
B2: 2-11 | C2: 3 | D2: John | E2: Duplicate Customer Names | H2: 0 | R2: 0
B3: 2-20 | C3: 2 | D3: John | E3: UI - Call RPC$CUSTOMER_CREATE when adding saved item locations | G3: 3 | H3: -0.5 | I3: https://laddawn1.atlassian.net/wiki/display/web/Adding+Location+Tags | K3: 2014-02-27T09:00:00 | N3: 3.5 | R3: 3.5
B4: 2-3 | C4: 3 | D4: John | E4: UI - Update Saved Items View | G4: 1 | H4: 0 | R4: 0 | S4: 1
B5: 2-4 | C5: 3 | D5: John | E5: UI - code retrieval of customer items from Database | G5: 1 | H5: 0 | R5: 0 | S5: 1
B6: 2-5 | C6: 3 | D6: John | E6: UI - code save of customer items to Database | G6: 1 | H6: 0 | R6: 0 | S6: 1
B7: 5-1 | C7: 3 | D7: John | E7: Create Pop-up for Duplicate PO numbers | H7: 0 | R7: 0
B8: 800-5 | C8: 80 | E8: Sal - Fixing Bug | G8: 40 | H8: 40 | I8: QA Reporting and Tracking | J8: 2014-01-08 | R8: 0
B9: 86-1 | C9: 2 | D9: John | E9: UI - Rework to get Saved Items Tab Fully Functional | G9: 24 | H9: -2.25 | K9: 2014-01-30T12:20:00 | M9: 0.75 | N9: 2 | R9: 2.75 | S9: 23.5
B10: 88-1 | C10: 2 | D10: John | E10: Redesign the Sharing Interface | G10: 24 | H10: 24 | I10: https://laddawn1.atlassian.net/wiki/pages/viewpage.action?pageId=28115163 | J10: 2014-02-07 | K10: 2014-02-11T09:00:00 | R10: 0
A11: UI Pgmr | C11: 9 | E11: Unassigned Work | M11: 7.5 | N11: 2.25 | O11: 0 | P11: 0 | Q11: 0 | R11: 9.75
C12: 9 | E12: DO NOT DELETE, TEMPLATE ROW FOR FORMULAS | H12: 0 | R12: 0

Sheet tempRollup (hidden)
A1: Sequence | B1: Tab | C1: Task Nbr | D1: Dt Added | E1: Status | F1: Designer | G1: Programming Task Description | H1: Pty | I1: DB Pgmr | J1: DB Hours | K1: DB Rem | L1: UI Pgmr | M1: UI Hours | N1: UI Rem | O1: Wiki Programing Document Spec Name | P1: Dt Assigned | Q1: St Date
A2: 140 | B2: ActiveCart | C2: 12-0 | E2: 3 | G2: Cart - Handle Price expiration of MOD items | J2: 0 | K2: 0 | M2: 0 | N2: 0 | R2: The active cart tab shows the customer what items still have "active" pricing, or pricing that will expire soon. This is about showing the customer the correct cues about their pricing on MOD items.
A3: 147 | B3: ActiveCart | C3: 13-0 | E3: 1 | G3: Cart - Repricing MOD items in the cart. | J3: 0 | K3: 0 | M3: 0 | N3: 0 | R3: Changing Zip Code, CPU, QTY, Freight Option on the cart will trigger a repricing of the MOD item by calling the pricing routine with the correct flags. A subset of 17-0
A4: 151 | B4: ActiveCart | C4: 14-0 | E4: 1 | G4: Cart - Handling Zipcode changes in the Cart. | J4: 10 | K4: 10 | M4: 3 | N4: 0 | R4: The customer is allowed to change the ZIP code for which the cart is built. This change effects availability dates, primary warehouse selection and MOD pricing.
A5: 158 | B5: ActiveCart | C5: 15-0 | E5: 1 | G5: Cart - CE version of contact’s cart (by operator) | J5: 8 | K5: 8 | M5: 0 | N5: 0 | R5: While the customer contact is on the website, and CE logs in as that customer, we don't want them conflicting on the same active cart. So CE will need its own version of the cart when logged in as another contact. And different CE users will have to have their own cart.
A6: 161 | B6: ActiveCart | C6: 16-0 | E6: 1 | G6: Cart - New print plate logic (no checkout until approval) | J6: 0 | K6: 0 | M6: 32 | N6: 32 | R6: If the MOD item in the cart has a print plate assigned that we do not have the image for the customer must upload the image through the site before being allowed to start the checkout process. This is where they select the PDF on their system and upload it to Laddawn in a status of awaiting approval.
A7: 168 | B7: ActiveCart | C7: 17-0 | E7: 1 | G7: Cart - Changes to Items in a Cart (add, delete , quantity changes) | J7: 1 | K7: 1 | M7: 4 | N7: 4 | R7: A more inclusive statement of 13-0. 13-0 was referring to only MOD items, this is referring to both stock and MOD.
A8: 293 | B8: ActiveCart | C8: 41-0 | E8: 1 | G8: MOD Item Descriptions | J8: 8 | K8: 8 | M8: 0 | N8: 0 | R8: We need to establish how we are going to return descriptions in the different areas of the site for MOD items since they aren't really stored anywhere.
A9: 297 | B9: ActiveCart | C9: 42-0 | E9: 3 | G9: Freight Dropdown | J9: 0 | K9: 0 | M9: 0 | N9: 0 | R9: We have to respond to the user changing this field from the cart.
A10: 301 | B10: ActiveCart | C10: 43-0 | E10: 3 | G10: Total Items | J10: 0 | K10: 0 | M10: 0 | N10: 0 | R10: Currently the item count on the cart tab does not include MOD items, we need to fix this.
A11: 309 | B11: ActiveCart | C11: 45-0 | E11: 3 | G11: Quick Add | J11: 0 | K11: 0 | M11: 0 | N11: 0 | R11: Handling enter and setting focus back to item number box after add button
A12: 336 | B12: ActiveCart | C12: 53-0 | E12: 1 | G12: Stock & MOD Price Overrides (Misc$) | J12: 0 | K12: 0 | M12: 16 | N12: 0 | R12: Detecting the user as someone that can override prices, giving them an interface to change the prices in the cart, and save those "overrides"
A13: 465 | B13: ActiveCart | C13: 85-0 | E13: 1 | G13: Adding MOD Items to Active Cart | J13: 0 | K13: 0 | M13: 0 | N13: 0
A14: 189 | B14: CEWeb | C14: 22-0 | E14: 0 | G14: Spinning off multiple requests. | J14: 0 | K14: 0 | M14: 0 | N14: 0 | R14: How are we going to handle multiple requests per call. Especially in regards to handling on hold requests and routings.
A15: 198 | B15: CEWeb | C15: 24-0 | E15: 1 | G15: Send CE to the Web at the right time. | J15: 13 | K15: 13 | M15: 0 | N15: 0 | R15: This means not sending to the web other times.
A16: 206 | B16: CEWeb | C16: 25-0 | E16: 1 | G16: CE & Sales Impersonating a contact. | J16: 10 | K16: 10 | M16: 6 | N16: 0 | R16: How will Laddawn staff impersonate a contact on the website, and what special considerations do we need to take into account. And do CE / CR / Sales have different fields available on the site.
A17: 225 | B17: CEWeb | C17: 28-0 | E17: 0 | G17: CE - Multiple Sessions - making it work | J17: 0 | K17: 0 | M17: 0 | N17: 0 | R17: How will CE work if we cannot use multiple web sessions. Initial investigation is done and works in IE* and above, Chrome, not Firefox
A18: 229 | B18: CEWeb | C18: 29-0 | E18: 0 | G18: Godzilla - CE Quote Search | J18: 0 | K18: 0 | M18: 0 | N18: 0 | R18: When the user fills out the Shop Widget we will look for that same item in the shopping carts, recent order history, and saved items.
A19: 59 | B19: Checkout | C19: 5-0 | E19: 3 | G19: Duplicate P/O display in Checkout | J19: 0 | K19: 0 | M19: 0 | N19: 0 | R19: A popup showing the other orders this PO number is used on. Called from Payment screen of checkout.
A20: 63 | B20: Checkout | C20: 6-0 | E20: 1 | G20: Order Creation | J20: 35.5 | K20: 27 | M20: 0 | N20: 0 | R20: Separating bundles to Avante orders and create a master order. Includes number assignment scheme.
A21: 84 | B21: Checkout | C21: 7-0 | E21: 1 | G21: Checkout - Labeling | J21: 0 | K21: 0 | M21: 6 | N21: 6 | R21: Completion of the Labeling step of checkout process.
A22: 98 | B22: Checkout | C22: 8-0 | E22: 1 | G22: Checkout - Addresses | J22: 4 | K22: 4 | M22: 10 | N22: 8 | R22: First step of the checkout process. Where the user selects or adds the ship to address.
A23: 107 | B23: Checkout | C23: 9-0 | E23: 1 | G23: Checkout - Payment | J23: 0 | K23: 0 | M23: 5 | N23: 5 | R23: Checkout Payment step. Display / Validate / save.
A24: 112 | B24: Checkout | C24: 10-0 | E24: 1 | G24: Checkout - Giving | J24: 6 | K24: 6 | M24: 2 | N24: 2 | R24: Checkout Giving Page
A25: 118 | B25: Checkout | C25: 11-0 | E25: 1 | G25: Checkout - Bundling View | J25: 78 | K25: 39 | M25: 30 | N25: 30 | R25: Complete Bundling page of checkout.
A26: 341 | B26: Checkout | C26: 54-0 | E26: 1 | G26: Checkout - Summary | J26: 16 | K26: 16 | M26: 18.5 | N26: 18.5 | R26: The summary page for checkout is a work in progress.
A27: 349 | B27: Checkout | C27: 56-0 | E27: 2 | G27: Add Order Total Panel | J27: 6 | K27: 5.5 | M27: 0 | N27: 0 | R27: The order total panel is the section on the checkout pages where the user sees the order total and any order charges we are charging.
A28: 355 | B28: Checkout | C28: 57-0 | E28: 0 | G28: Labeling | J28: 0 | K28: 0 | M28: 0 | N28: 0 | R28: Writing the labeling step of the checkout process. Including interfacing with Bartender.
A29: 360 | B29: Checkout | C29: 58-0 | E29: 1 | G29: Master User Setup | J29: 0 | K29: 0 | M29: 5 | N29: 5 | R29: Allowing the user to choose what bill to they want to work under, and changing filtering and notifications to that end.
A30: 364 | B30: Checkout | C30: 60-0 | E30: 3 | G30: Checkout Labeling - Build Label Image | J30: 0 | K30: 0 | M30: 0 | N30: 0
A31: 425 | B31: DataConversions | C31: 78-0 | E31: 0 | G31: Conversion Programs | J31: 77 | K31: 74 | M31: 0 | N31: 0 | R31: How will we migrate our data from the current setup to the future information structure of the new site.
A32: 251 | B32: Future Use | C32: 31-0 | E32: 99 | G32: Reserved for Future Use | J32: 0 | K32: 0 | M32: 0 | N32: 0
A33: 485 | B33: Future Use | C33: 90-0 | E33: 99 | G33: Reserved for Future Use | J33: 0 | K33: 0 | M33: 0 | N33: 0
A34: 489 | B34: Future Use | C34: 91-0 | E34: 99 | G34: Reserved for Future Use | J34: 0 | K34: 0 | M34: 0 | N34: 0
A35: 493 | B35: Future Use | C35: 92-0 | E35: 99 | G35: Reserved for Future Use | J35: 0 | K35: 0 | M35: 0 | N35: 0
A36: 497 | B36: Future Use | C36: 93-0 | E36: 99 | G36: Reserved for Future Use | J36: 0 | K36: 0 | M36: 0 | N36: 0
A37: 501 | B37: Future Use | C37: 94-0 | E37: 99 | G37: Reserved for Future Use | J37: 0 | K37: 0 | M37: 0 | N37: 0
A38: 505 | B38: Future Use | C38: 95-0 | E38: 99 | G38: Reserved for Future Use | J38: 0 | K38: 0 | M38: 0 | N38: 0
A39: 509 | B39: Future Use | C39: 96-0 | E39: 99 | G39: Reserved for Future Use | J39: 0 | K39: 0 | M39: 0 | N39: 0
A40: 513 | B40: Future Use | C40: 97-0 | E40: 99 | G40: Reserved for Future Use | J40: 0 | K40: 0 | M40: 0 | N40: 0
A41: 517 | B41: Future Use | C41: 98-0 | E41: 99 | G41: Reserved for Future Use | J41: 0 | K41: 0 | M41: 0 | N41: 0
A42: 530 | B42: Investigate | C42: 1999-0 | E42: 0 | G42: Items Requiring Further Investigation | J42: 0 | K42: 0 | M42: 0 | N42: 0
A43: 1 | B43: Key to Reporting | C43: 0-0 | E43: 0 | G43: Status' | J43: 0 | K43: 0 | M43: 0 | N43: 0
A44: 235 | B44: Miscellaneous | C44: 30-0 | E44: 1 | F44: Judy | G44: Miscellaneous Avante Items | J44: 103 | K44: 103 | M44: 4 | N44: 4
A45: 368 | B45: Miscellaneous | C45: 61-0 | E45: 2 | G45: Cross Browser Support | J45: 0 | K45: 0 | M45: 96 | N45: 96 | R45: Testing on Multiple Platforms / Issues with IE8
A46: 374 | B46: Miscellaneous | C46: 64-0 | E46: 0 | G46: Quote and Ack Forms | J46: 0 | K46: 0 | M46: 0 | N46: 0 | R46: No change to form layout. Continue to use for NS quote/orders & sample orders.
A47: 383 | B47: Miscellaneous | C47: 65-0 | E47: 1 | G47: Web Discount | J47: 6 | K47: 6 | M47: 2 | N47: 2 | R47: Carry around the web discount from SYSCON and allow CE overide - always default CE to Zero
A48: 388 | B48: Miscellaneous | C48: 66-0 | E48: 0 | G48: Order Creation - Credit Hold - for Master Orders | J48: 4 | K48: 4 | M48: 0 | N48: 0 | R48: Put entire master order on hold (all sub-orders) - Stock will not be allocated when put on hold
A49: 392 | B49: Miscellaneous | C49: 68-0 | E49: 2 | G49: Shipping Instruction Upcharges | J49: 16 | K49: 16 | M49: 0 | N49: 0 | R49: Capturing and passing along the correct upcharges on an order.
A50: 396 | B50: Miscellaneous | C50: 70-0 | E50: 0 | G50: Invoice Form - Shipping Upcharges | J50: 8 | K50: 8 | M50: 0 | N50: 0 | R50: Folded into the upcharges above.
A51: 401 | B51: Miscellaneous | C51: 72-0 | E51: 1 | G51: Shipping Notifications | J51: 16 | K51: 16 | M51: 0 | N51: 0 | R51: Notifications for Customer Pickups & based on customer preference (call me when shipped)
A52: 406 | B52: Miscellaneous | C52: 75-0 | E52: 0 | G52: CE Discrepancies Drawer | J52: 50 | K52: 50 | M52: 49 | N52: 49 | R52: flagging in cart, different order acknowledgement, put order(s) on hold, auto-release for onhold orders
A53: 415 | B53: Miscellaneous | C53: 76-0 | E53: 0 | G53: Preference-related logic for defaults | J53: 0 | K53: 0 | M53: 0 | N53: 0 | R53: ie, cradlepacked, no verbal p/o, no verbal order, - any comment used today that result in a different default or validation -
A54: 420 | B54: Miscellaneous | C54: 77-0 | E54: 1 | G54: Lock Logic - Carts, Quote Changes, etc - | J54: 0 | K54: 0 | M54: 0 | N54: 0 | R54: Locking items for changes to prevent other users from modifyin at the same time.
A55: 435 | B55: Miscellaneous | C55: 79-0 | E55: 5 | G55: Performance Optimization / Server Response Issues | J55: 0 | K55: 0 | M55: 0 | N55: 0 | R55: Streamlining the functions supporting the site so that it seems as fast as possible without sacrificing integrity.
A56: 441 | B56: Miscellaneous | C56: 80-0 | E56: 1 | G56: Picking Slip | J56: 12 | K56: 12 | M56: 0 | N56: 0 | R56: Modify 'date heading' on warehouse picking slip (Arrive On, Ship On, Ship On or Before)
A57: 461 | B57: Miscellaneous | C57: 84-0 | D57: 41659 | E57: 5 | G57: Send Customer Back to Site Based on Email Link | J57: 0 | K57: 0 | M57: 0 | N57: 0 | R57: This is used to direct the customer to a specific page (??) based on a link in an email
A58: 481 | B58: Miscellaneous | C58: 89-0 | E58: 0 | G58: Modal Windows Rules | J58: 0 | K58: 0 | M58: 0 | N58: 0
A59: 55 | B59: MyAccount | C59: 4-0 | E59: 3 | G59: Process at Login - Deleting Expired Carts | J59: 0 | K59: 0 | M59: 0 | N59: 0 | R59: Purging "old" carts upon login based on time since last activity date. What defines "old" is a system wide setting.
A60: 177 | B60: OrderHistory | C60: 19-0 | E60: 0 | G60: Modify results to handle master orders | J60: 0 | K60: 0 | M60: 0 | N60: 0 | R60: Currently Order History brings up list of avante orders. This will need some work to be "master order aware".
A61: 181 | B61: OrderHistory | C61: 20-0 | E61: 0 | G61: Complete Summary Popup | J61: 0 | K61: 0 | M61: 0 | N61: 0 | R61: When the user clicks summary in Order History tab, this is what they will see.
A62: 185 | B62: OrderHistory | C62: 21-0 | E62: 0 | G62: Complete Tracking Popup for all Carriers | J62: 0 | K62: 0 | M62: 0 | N62: 0 | R62: Order history tracking popup works for carriers with online tracking tools that do not require a login. This is about how we handle these issues.
A63: 331 | B63: OrderHistory | C63: 52-0 | E63: 1 | G63: Remake Orders - Re-Order Page | J63: 0 | K63: 0 | M63: 12 | N63: 0 | R63: Remake order logic needs to be added for CE only
A64: 542 | B64: Phase II | C64: 2000-0 | E64: 0 | G64: Contract Pricing Structure | J64: 0 | K64: 0 | M64: 0 | N64: 0
A65: 521 | B65: QA Reporting | C65: 800-0 | G65: Assigned Bug Fixes | J65: 0 | K65: 0 | M65: 0 | N65: 0
A66: 276 | B66: SavedCarts | C66: 37-0 | E66: 1 | G66: Results | J66: 4 | K66: 4 | M66: 6 | N66: 6
A67: 280 | B67: SavedCarts | C67: 38-0 | E67: 0 | G67: Handling Working on Someone Else's Cart | J67: 0 | K67: 0 | M67: 0 | N67: 0 | R67: Saved Carts allows you to find and "activate" someone else's cart. We need to figure out how that is going to work as far as who owns the order that gets created, and what notifications need to happen, and how.
A68: 14 | B68: SavedItems | C68: 2-0 | E68: 1 | G68: New customer part number logic | J68: 28 | K68: 22 | M68: 3 | N68: -0.5 | R68: including cart logic hover over our part# to see customer part#. Assigning customer part numbers from Saved Items Popup and calling that popup from the Labeling step of checkout, then refreshing labeling screen when they are done with that popup.
A69: 39 | B69: SavedItems | C69: 3-0 | E69: 3 | G69: Change the saved items record key | J69: 0 | K69: 0 | M69: 0 | N69: 0 | R69: From Contact to Bill-to Number --- Changing the location that the saved MOD items are stored, and changing file structure and programs to use the new structure. Including "finding" an existing MOD item from the Shop widget to pull up existing MOD items based on configuration.
A70: 218 | B70: SavedItems | C70: 26-0 | E70: 1 | G70: Saved Items / Multiple Quotes / MOD item in Multiple Carts | J70: 4 | K70: 4 | M70: 6 | N70: 6
A71: 222 | B71: SavedItems | C71: 27-0 | E71: 1 | G71: MOD item cannot be in the same cart more than once | J71: 0 | K71: 0 | M71: 6 | N71: 6
A72: 469 | B72: SavedItems | C72: 86-0 | E72: 2 | G72: Rework Saved Items Tab | J72: 0 | K72: 0 | M72: 30 | N72: -2.25
A73: 305 | B73: Share Cart | C73: 44-0 | E73: 1 | G73: Sharing MOD Quote | J73: 4 | K73: 4 | M73: 0 | N73: 0 | R73: Currently the item count on the cart tab does not include MOD items, we need to fix this.
A74: 289 | B74: ShareCart | C74: 40-0 | E74: 1 | G74: Redisplay Shared Cart from Saved Carts | J74: 8 | K74: 8 | M74: 20 | N74: 20 | R74: We need to display the information that was shared by our customers to their colleagues and customers.
A75: 10 | B75: ShopWidget | C75: 1-0 | E75: 4 | G75: Avante - Changes for Rolls, Rolls Cradle packed, Rolls Boxed | J75: 0 | K75: 0 | M75: 0 | N75: 0 | R75: Show just "Rolls" in packaging section so we can show the user Rolls Boxed and Rolls Cradlepacked in results as exact matches.
A76: 172 | B76: ShopWidget | C76: 18-0 | E76: 3 | G76: Marketplace - When to show MOD Result | J76: 0 | K76: 0 | M76: 12 | N76: 12 | R76: In some circumstances (CPU, or Mktplace Price higher than Laddawn stock) orders cannot be Marketplace orders. This is referring to the work needed to ensure that marketplace MOD items are PPD only and a better price or leadtime than the stock item found. Currently all marketplace orders must be PPD.
A77: 193 | B77: ShopWidget | C77: 23-0 | E77: 2 | G77: Default and Validate Zip Code Based on Active Cart | J77: 0 | K77: 0 | M77: 1 | N77: 0 | R77: Handling enter and setting focus back to item number box after add button
A78: 255 | B78: ShopWidget | C78: 32-0 | E78: 1 | G78: Validations - Group Validations | J78: 0 | K78: 0 | M78: 25 | N78: 25 | R78: Group validations in the shop widget as explained on the next line.
A79: 259 | B79: ShopWidget | C79: 33-0 | E79: 0 | G79: Changing Quotes | J79: 0 | K79: 0 | M79: 0 | N79: 0 | R79: Retrieving a saved item with its quote intact, having the website tracking whether or not it has revised a quote already in this session, and having the pricing routines return prices based on the correct information.
A80: 264 | B80: ShopWidget | C80: 34-0 | E80: 1 | G80: Extended Descriptions | J80: 0 | K80: 0 | M80: 1 | N80: 1 | R80: The plan is to have a routine build the extended description and specification based on the answers the user supplied during the configuration stage. Maketing has not yet supplied the values to link to the given questions for this system to be implemented.
A81: 268 | B81: ShopWidget | C81: 35-0 | E81: 0 | G81: Atlanta Production | J81: 12 | K81: 12 | M81: 0 | N81: 0 | R81: Rules for assigning Atlanta as the production facility on a MOD Order - David providing rules
A82: 273 | B82: ShopWidget | C82: 36-0 | E82: 4 | G82: Level 3 defaults | J82: 0 | K82: 0 | M82: 0 | N82: 0 | R82: Values that are passed in to the search results routine are considered even when that category is disabled. We want to ignore disabled fields to get the correct information back in results.
A83: 284 | B83: ShopWidget | C83: 39-0 | E83: 0 | G83: MOD Result - Random Repeat | J83: 0 | K83: 0 | M83: 0 | N83: 0 | R83: Random Repeat MOD Result
A84: 313 | B84: ShopWidget | C84: 47-0 | E84: 1 | G84: Results - show message when can't make MOD item | J84: 2 | K84: 2 | M84: 0 | N84: 0 | R84: Establishing when we can make a MOD item is working correctly, but we may need to rewrite the wording.
A85: 317 | B85: ShopWidget | C85: 48-0 | E85: 1 | G85: Detecting WHS discrepancy for CPU MOD items. | J85: 2 | K85: 2 | M85: 23 | N85: 23 | R85: We need to display a message telling the customer this item may not be made at their nearest warehouse when it is a CPU search, This means we need to detect when that is the case.
A86: 324 | B86: ShopWidget | C86: 49-0 | E86: 4 | G86: Enter YMAC Rules for ALL categories | J86: 0 | K86: 0 | M86: 0 | N86: 0 | R86: YMAC searches is based on rules that are entered into Avante (SYS9026), I need to enter the basis of these rules to start.
A87: 327 | B87: ShopWidget | C87: 50-0 | E87: 1 | G87: Banner Search - Search by Customer Part# or MOD Item Nbr | J87: 28 | K87: 28 | M87: 0 | N87: 0 | R87: Add ability - This is in addition to the stock item# search already in place
A88: 446 | B88: ShopWidget | C88: 81-0 | D88: 41638 | E88: 1 | G88: Stock Selections for Centerfold Sheeting & LLD | J88: 3 | K88: 3 | M88: 0 | N88: 0 | R88: Folded width is entered, RPC needs to take width x 2 for selection
A89: 451 | B89: ShopWidget | C89: 82-0 | D89: 41642 | E89: 0 | G89: New Shop Widget Product Categories | J89: 8 | K89: 8 | M89: 0 | N89: 0 | R89: Add Black Conductive Bags under Poly Bags and Blk Cond Tubing under Tubing & Sleeves
A90: 456 | B90: ShopWidget | C90: 83-0 | D90: 41649 | E90: 2 | G90: Check for MOD Item match before showing MOD Result | J90: 17 | K90: 17 | M90: 0 | N90: 0 | R90: When returning a MOD Result, check to see if there is an exact match for this item in the billto's MOD.ITMMST.USR file. If so, display result with the MOD Item# so that it can't be duplicated. What do we use for packout? Default or packout of first exact match we find? What if packout is changed in results ... look to see if that's a different MOD Item?
A91: 473 | B91: ShopWidget | C91: 87-0 | E91: 0 | G91: Random Repeat - Plate Sorting/Selection | J91: 0 | K91: 0 | M91: 0 | N91: 0
A92: 477 | B92: ShopWidget | C92: 88-0 | E92: 2 | G92: Redesign the Sharing interface | J92: 0 | K92: 0 | M92: 24 | N92: 24
A93: 2 | C93: 0-1 | E93: 0 | G93: 0 = Awaiting Info - can't design yet
A94: 3 | C94: 0-2 | E94: 1 | G94: 1 = Ready to Design
A95: 4 | C95: 0-3 | E95: 2 | G95: 2 = Ready for Program
A96: 5 | C96: 0-4 | E96: 3 | G96: 3 = In QA
A97: 6 | C97: 0-5 | E97: 4 | G97: 4 = Done
A98: 7 | C98: 0-6 | E98: 5 | G98: 5 = Investigation
A99: 8 | C99: 0-7 | E99: 80 | G99: 80 = Bug Fixes
A100: 9 | C100: 0-8 | E100: 99 | G100: 99 = Reserved for Future Use
A101: 11 | C101: 1-1 | D101: 41603 | E101: 4 | F101: Judy | G101: Modify Packaging Group Description | I101: Joe | K101: 0
A102: 12 | C102: 1-2 | D102: 41603 | E102: 4 | F102: Judy | G102: Modify Packaging Default Value | I102: Joe | K102: 0
A103: 13 | C103: 1-3 | E103: 99 | G103: Reserved for Future Use
A104: 15 | C104: 2-1 | D104: 41603 | E104: 99 | G104: Reserved for Future Use
A105: 16 | C105: 2-2 | D105: 41603 | E105: 3 | F105: John | G105: UI - Update Checkout Label View | L105: Francisco
A106: 17 | C106: 2-3 | D106: 41603 | E106: 3 | F106: John | G106: UI - Update Saved Items View | L106: Sal | M106: 1 | N106: 0 | R106: Interfacing that if the customer has a customer item number then bring ack that info
A107: 18 | C107: 2-4 | D107: 41603 | E107: 3 | F107: John | G107: UI - code retrieval of customer items from Database | L107: Sal | M107: 1 | N107: 0 | R107: save item popup - display existing customer item number for stock or MOD
A108: 19 | C108: 2-5 | D108: 41603 | E108: 3 | F108: John | G108: UI - code save of customer items to Database | L108: Sal | M108: 1 | N108: 0 | R108: saves item
A109: 20 | C109: 2-6 | D109: 41603 | E109: 3 | F109: John | G109: DB - RPC to return customer items to web | I109: Joe | K109: 0
A110: 21 | C110: 2-7 | D110: 41603 | E110: 3 | F110: John | G110: DB - RPC to save customer items to database | I110: John | J110: 3 | K110: 3 | R110: needs to update cross ref and check to see if iems are getting written correcty
A111: 22 | C111: 2-8 | D111: 41603 | E111: 3 | F111: Cathy | G111: Conversion - convert items | I111: Cathy | J111: 4 | K111: 4 | O111: Programming Specs - Customer Part Numbers | R111: new format for customer item numbers (custom and combine 3 description lines to 2
A112: 23 | C112: 2-9 | D112: 41603 | E112: 99 | G112: Reserved for Future Use
A113: 24 | C113: 2-10 | D113: 41603 | E113: 3 | F113: Cathy | G113: Avante - Modify the Customer Item Number Upload - Part I | I113: Joe | K113: 0 | O113: Programming Specs - Customer Part Numbers | P113: 41634 | R113: change to write the new CUSTPARTXREF.USR record
A114: 25 | C114: 2-11 | D114: 41603 | E114: 3 | F114: John | G114: Duplicate Customer Names | L114: Sal | N114: 0 | R114: We concatenated the city and state to the name for display
A115: 26 | C115: 2-12 | D115: 41603 | E115: 3 | F115: Cathy | G115: Avante - Modify Existing Programs to Use CUSTPARTXRF.USR - Part II | I115: Joe | K115: 0 | O115: Programming Specs - Customer Part Numbers | P115: 41634 | R115: Format for custpart.usr will now have key for custom items to be co*cust*MODnnnn
A116: 27 | C116: 2-13 | D116: 41603 | E116: 3 | F116: Cathy | G116: Avante - Program to create CUSTPARTXRF.USR - Part I | I116: Joe | K116: 0 | O116: Programming Specs - Customer Part Numbers | P116: 41634 | R116: Create CUSTPARTXRF.USR for existing items
A117: 28 | C117: 2-14 | D117: 41603 | E117: 3 | F117: Cathy | G117: Avante - Customer Item Number Maintenance - Part I | I117: Joe | K117: 0 | O117: Programming Specs - Customer Part Numbers | P117: 41634 | R117: change to write the new CUSTPARTXREF.USR record
A118: 29 | C118: 2-15 | D118: 41603 | E118: 1 | F118: Cathy | G118: Avante - Customer Item Number Maintenance - Part II | I118: Cathy | J118: 2 | K118: 2 | O118: Programming Specs - Customer Part Numbers | P118: 41634 | R118: Modify for the MOD item from Cpartnumber key change
A119: 30 | C119: 2-16 | D119: 41603 | E119: 1 | F119: Cathy | G119: Avante - Customer Item Number Upload - Part II | I119: Cathy | J119: 2 | K119: 2 | O119: Programming Specs - Customer Part Numbers | P119: 41634 | R119: Modify for the MOD item from Cpartnumber key change
A120: 31 | C120: 2-17 | E120: 2 | F120: Judy | G120: DB - Create routine WEB.CREATE.CUSTOMER | I120: Wayne | J120: 10 | K120: 4 | O120: Programming Specs - Create/Modify Drop Ship Customer | P120: 41670 | R120: Assign customer number and write to CUSTMST with billto defaults, no address and set inactive flag or update the existing customer. Update customer preferences flagged in shipping instructions.
A121: 32 | C121: 2-18 | E121: 2 | F121: Judy | G121: DB - Modify Existing RPC$SHOPPINGCART_CREATEORDER | I121: Wayne | J121: 8 | K121: 8 | O121: Programming Specs - Create/Modify Drop Ship Customer | P121: 41670 | R121: remove the logic and call the routine - logic must be moved out of stockcreate and into main program & called before stock/MOD orders are created
A122: 33 | C122: 2-19 | E122: 2 | F122: Judy | G122: DB - New RPC Called RPC$CUSTOMER_CREATE | I122: Wayne | J122: 4 | K122: 4 | O122: Programming Specs - Create/Modify Drop Ship Customer | P122: 41670 | R122: web will call this program when it needs a customer created and will return all information back to the site
A123: 34 | C123: 2-20 | E123: 2 | F123: John | G123: UI - Call RPC$CUSTOMER_CREATE when adding saved item locations | L123: Sal | M123: 3 | N123: -0.5 | O123: https://laddawn1.atlassian.net/wiki/display/web/Adding+Location+Tags | Q123: 41697.375
A124: 35 | C124: 2-21 | E124: 5 | F124: Judy | G124: Avante - Investigate Inactive Flag Handling on Selects and Validations | I124: Judy | J124: 2 | K124: 2
A125: 36 | C125: 2-22 | E125: 2 | F125: John | G125: UI - Address Checkout, catch user selected blank customer. Show form. | O125: https://laddawn1.atlassian.net/wiki/display/web/Converting+Locations+to+Customers | R125: The user will be allowed to selected a customer that does not have enough data on it. We need to trap that and display entry form to allow user to fill out the rest of the info for that customer. Duplicated on 8-5.
A126: 37 | C126: 2-23 | E126: 2 | F126: Judy | G126: DB - Change cust selection when coming from Address Screen | I126: Wayne | J126: 2 | K126: 2 | O126: Programming Specs - Create/Modify Drop Ship Customer | P126: 41673 | R126: Change CUSTOMER_GETBYFILTER to add ZIP = "" when coming from the Checkout Address Screen (FLAG will be a "1")
A127: 38 | C127: 2-24 | E127: 99 | G127: Reserved for Future Use
A128: 40 | C128: 3-1 | D128: 41603 | E128: 3 | F128: John | G128: DB - Create file to hold Mod Item Specification by Bill-to | I128: Joe | K128: 0
A129: 41 | C129: 3-2 | D129: 41603 | E129: 3 | F129: John | G129: DB - Modify File Structure for Contact Item information | I129: Joe | K129: 0
A130: 42 | C130: 3-3 | D130: 41603 | E130: 3 | F130: John | G130: DB - RPC$MODITEM_CREATE | I130: Joe | K130: 0 | R130: Update saving of MOD items
A131: 43 | C131: 3-4 | D131: 41603 | E131: 3 | F131: John | G131: DB - RPC$CONTACTITEM_DELETE | I131: Joe | K131: 0 | R131: Delete Billto Level data as well?
A132: 44 | C132: 3-5 | D132: 41603 | E132: 3 | F132: John | G132: DB - RPC$CONTACTITEM_GETBYFILTER | I132: Joe | K132: 0 | R132: Pull info from billto level & Contact level
A133: 45 | C133: 3-6 | D133: 41603 | E133: 3 | F133: John | G133: DB - RPC$CONTACTITEM_GETBYID | I133: Joe | K133: 0 | R133: Pull Info from billto level & Contact Level
A134: 46 | C134: 3-7 | D134: 41603 | E134: 3 | F134: John | G134: DB - RPC$CONTACTITEM_SAVE | I134: Joe | K134: 0
A135: 47 | C135: 3-8 | D135: 41603 | E135: 3 | F135: John | G135: DB - RPC$ITEMTAG_GETBYFILTER | I135: Joe | K135: 0
A136: 48 | C136: 3-9 | D136: 41603 | E136: 3 | F136: John | G136: DB - RPC$ITEMTAG_GETBYFILTER2 | I136: Joe | K136: 0
A137: 49 | C137: 3-10 | D137: 41603 | E137: 3 | F137: John | G137: DB - RPC$ITEMTAG_SELECT | I137: Joe | K137: 0
A138: 50 | C138: 3-11 | D138: 41603 | E138: 3 | F138: John | G138: DB - RPC$QUOTEITEM_GETBYSAVEDITEM | I138: Joe | K138: 0
A139: 51 | C139: 3-12 | D139: 41603 | E139: 3 | F139: John | G139: DB - RPC$SHAREDITEM_GETBYFILTER | I139: Joe | K139: 0
A140: 52 | C140: 3-13 | D140: 41603 | E140: 3 | F140: John | G140: DB - RPC$SHAREDITEM_SAVE | I140: Joe | K140: 0
A141: 53 | C141: 3-14 | D141: 41603 | E141: 3 | F141: John | G141: DB - RPC$SHIPMENTBUNDLING_GETBYFILTER | I141: Joe | K141: 0
A142: 54 | C142: 3-15 | E142: 99 | G142: Reserved for Future Use
A143: 56 | C143: 4-1 | E143: 3 | F143: John | G143: DB - Write Last Activity Date to SHOPPINGCART.USR | I143: Joe | J143: 1.5 | K143: 0 | O143: https://laddawn1.atlassian.net/wiki/display/web/Functional+Spec.+-+Write+Cart+Last+Activity+Date | P143: 41654
A144: 57 | C144: 4-2 | E144: 3 | F144: John | G144: DB - Delete old carts upon user validation based on xxx days old | I144: Joe | J144: 1.5 | K144: 0 | O144: https://laddawn1.atlassian.net/wiki/pages/viewpage.action?pageId=27754595 | P144: 41654 | R144: Can carts be deleted by anyone other than the user that created them?
A145: 58 | C145: 4-3 | E145: 99 | G145: Reserved for Future Use
A146: 60 | C146: 5-1 | E146: 3 | F146: John | G146: Create Pop-up for Duplicate PO numbers | L146: Sal | N146: 0
A147: 61 | C147: 5-2 | E147: 3 | F147: John | G147: Handle user response to pop-up | L147: Francisco
A148: 62 | C148: 5-3 | E148: 99 | G148: Reserved for Future Use
A149: 64 | C149: 6-1 | E149: 3 | F149: Judy | G149: Determine How To Create Orders from Bundles
A150: 65 | C150: 6-2 | E150: 3 | F150: Judy | G150: Create orders from Bundles | I150: Wayne | K150: -2
A151: 66 | C151: 6-3 | E151: 3 | F151: Judy | G151: Order Creation - Ship With Logic (ship with comment) | I151: Wayne | K151: 0 | P151: 41638
A152: 67 | C152: 6-4 | E152: 3 | F152: Judy | G152: Order Creation - Setting FOB Code for Customer Pickup | I152: Wayne | K152: 0 | P152: 41610 | Q152: 41610
A153: 68 | C153: 6-5 | E153: 3 | F153: Judy | G153: ‘Must Ship Today Flag’ | I153: Wayne | K153: 0 | P153: 41610 | Q153: 41610 | R153: setting on order based on time of day and bundle ship date
A154: 69 | C154: 6-6 | E154: 3 | F154: Judy | G154: Order source when ce enters order | I154: Wayne | K154: 0
A155: 70 | C155: 6-7 | E155: 3 | F155: Judy | G155: Creating a new Shipto Customer | I155: Wayne | K155: 0
A156: 71 | C156: 6-8 | E156: 3 | F156: Judy | G156: Write cart name to SOHDR.USR | I156: Wayne | K156: 0
A157: 72 | C157: 6-9 | E157: 5 | F157: Judy | G157: Move MOD ‘ashad' and order shipping preference comments | R157: ‘ashad’ comments and order shipping preference comments forward to new order
A158: 73 | C158: 6-10 | E158: 3 | F158: Judy | G158: Add Pallet Type as a w/o comment for MOD Orders | I158: Wayne | K158: 0 | P158: 41638 | R158: Pallet Type (from shipping preferences) must be added as a w/o comment for MOD Orders
A159: 74 | C159: 6-11 | D159: 41627 | E159: 2 | F159: Judy | G159: Add 'Backordered' or 'Ship Complete' comment to order w/backorder | I159: Wayne | J159: 4 | K159: 1 | O159: Create Order from Checkout | P159: 41638 | R159: For ship and b/o bundles, put 'Backorder' comment on the backordered order and nothing on main order. For default bundle shipping everything in 3 days (because of b/o), put a 'ship complete' comment on the order.
A160: 75 | C160: 6-12 | D160: 41638 | E160: 2 | F160: Judy | G160: Write Shipping Instruction Comments to Sales Order | I160: Wayne | J160: 4 | K160: 2 | O160: Create Order from Checkout
A161: 76 | C161: 6-13 | D161: 41642 | E161: 1 | F161: Judy | G161: Write w/o comment for 'no wooden slats' on Export Pallet jobs | I161: Judy | J161: 4 | K161: 4 | R161: comment automatically goes on work orders for export pallet jobs to NOT use untreated wooden slats
A162: 77 | C162: 6-14 | E162: 2 | F162: Judy | G162: Write MOD Item# to SOHDR.USR when converting a quote | I162: Wayne | J162: 0.5 | K162: 0.5
A163: 78 | C163: 6-15 | E163: 1 | F163: Judy | G163: Write cc'd contacts to sales order | I163: Cathy | J163: 4 | K163: 4
A164: 79 | C164: 6-16 | E164: 2 | F164: Judy | G164: Write upcharges to each order as revenue charge codes | I164: Wayne | J164: 10 | K164: 10 | O164: Create Order from Checkout 02/05/14 | P164: 41675 | R164: Call WEB.CALC.UPCHARGES and write each upcharge to order using revenue charge codes
A165: 80 | C165: 6-17 | E165: 2 | F165: Judy | G165: Determine Bundle Type for SHIP COMPLETE/BACKORDER comments | I165: Wayne | J165: 4 | K165: 0.5 | O165: Create Order from Checkout 02/04/14 | P165: 41674 | R165: Determine the bundle type based on bundle qty compared to qty ordered, bundle date, and future date. Will be used to add SHIP COMPLETE and BACKORDER comments to orders.
A166: 81 | C166: 6-18 | E166: 2 | F166: Judy | G166: Invoice Update-Charge every shipment for Chg Type "99" | I166: Wayne | J166: 3 | K166: 3 | O166: Create Order from Checkout 02/05/14 | P166: 41675 | R166: When invoicing revenue charge codes, charge every shipment if charge code type = 99
A167: 82 | C167: 6-19 | E167: 2 | F167: Judy | G167: Charge Code Validation - Allow type 99 on orders | I167: Wayne | J167: 2 | K167: 2 | O167: Create Order from Checkout 02/05/14 | P167: 41675 | R167: Allow revenue charge codes on an order if type is "99". Currently only allows types 1 and 2.
A168: 83 | C168: 6-20 | E168: 99 | G168: Reserved for Future Use
A169: 85 | C169: 7-1 | E169: 3 | F169: John | G169: Validations | L169: Francisco | R169: customer part number required, third party, Brandit customer setup
A170: 86 | C170: 7-2 | E170: 3 | F170: Judy | G170: DB - Update Labeling to SHOPPINGCART.USR | I170: Joe | J170: 6 | K170: 0 | O170: Programming Spec-Checkout Label Screen Updating | P170: 41675 | Q170: 41675 | R170: When user selects Save & Continue, update the SHOPPINGCART.USR record with all labeling info in RPC$SHOPPINGCART_SAVE. Includes setup of NAMED PARAMS and dictionaries
A171: 87 | C171: 7-3 | E171: 3 | F171: John | G171: Interface with Bartender to Generate Label Images | L171: Francisco
A172: 88 | C172: 7-4 | E172: 3 | F172: John | G172: Set Up Paging to Step from Label to Label. | L172: Francisco
A173: 89 | C173: 7-5 | E173: 1 | F173: John | G173: Interface with Saved Items Popup. | L173: John | M173: 4 | N173: 4 | R173: pull up saved items popup with the correct tagging
A174: 90 | C174: 7-6 | E174: 3 | F174: John | G174: Refresh Label Image as Needed. | L174: Francisco
A175: 91 | C175: 7-7 | E175: 3 | F175: John | G175: DB - Retrieve Customer Part Number Information. | I175: Joe | J175: 4 | K175: 4 | R175: pull customer part number and description onto the label
A176: 92 | C176: 7-8 | E176: 3 | F176: John | G176: Return Brandit Information as Customer Object Properties | L176: Francisco
A177: 93 | C177: 7-9 | E177: 3 | F177: John | G177: Show Correct Options for Label Format | L177: Francisco | R177: label type on top, check box options below, actual part numbers
A178: 94 | C178: 7-10 | E178: 1 | F178: CHRIS | G178: Creation of New Label Templates
A179: 95 | C179: 7-11 | E179: 3 | F179: John | G179: Handle Adding Label Comment | L179: Francisco
A180: 96 | C180: 7-12 | E180: 1 | F180: John | G180: UI - Retrieve Customer Part Number Information | L180: John | M180: 2 | N180: 2
A181: 97 | C181: 7-13 | E181: 99 | G181: Reserved for Future Use
A182: 99 | C182: 8-1 | E182: 4 | F182: Judy | G182: Check Create Order F2 validations | I182: Judy | J182: 0 | K182: 0 | R182: only diff is that zip code is entered, then city/state is defaulted from ZIPCODE.USR
A183: 100 | C183: 8-2 | E183: 3 | F183: Judy | G183: Update SHOPPINGCART.USR | I183: Wayne | K183: 0
A184: 101 | C184: 8-3 | E184: 3 | F184: John | G184: Verify that ship-to zip matches cart zip (in case of zip code change) | L184: Francisco
A185: 102 | C185: 8-4 | E185: 1 | F185: Judy | G185: Handle changing of Ship-to | I185: Judy | J185: 4 | K185: 4 | R185: changing of customer number - after getting to summary page - could have some FOB, VIA, or shipping preferences - if shipto.nbr # customer in cart then null out everything except the payment screen info
A186: 103 | C186: 8-5 | E186: 2 | F186: John | G186: UI - Handle "TAGGED SHIPTO" | L186: Ed | M186: 8 | N186: 6 | R186: selecting customer that was just "tagged" but is not a valid customer - has no address
A187: 104 | C187: 8-6 | E187: 4 | F187: Judy | G187: Dupe of 2-23 **DB - Handle "TAGGED SHIPTO" | I187: Judy | J187: 0 | K187: 0 | R187: selecting customer that was just "tagged" but is not a valid customer - has no address *** taken care of in 2-23
A188: 105 | C188: 8-7 | E188: 2 | F188: John | G188: Save Screen values to shopping cart in DB | L188: Ed | M188: 2 | N188: 2 | O188: https://laddawn1.atlassian.net/wiki/pages/viewpage.action?pageId=28409921 | R188: Clicking save and continue on this step needs to save the options to the database
A189: 106 | C189: 8-8 | E189: 99 | G189: Reserved for Future Use
A190: 108 | C190: 9-1 | E190: 3 | F190: Judy | G190: Check Create Order F2 validations | R190: **done-only diff is CC Name s/b reqd & Exp Date shouldn't default - UI??
A191: 109 | C191: 9-2 | E191: 3 | F191: John | G191: Make sure all validations from existing website are in new website (UI?)
A192: 110 | C192: 9-3 | E192: 1 | F192: John | G192: Redesign Payment View to new specifications | L192: John | M192: 5 | N192: 5
A193: 111 | C193: 9-4 | E193: 99 | G193: Reserved for Future Use
A194: 113 | C194: 10-1 | E194: 3 | F194: Judy | G194: Check Create Order F2 validations - | R194: *** NO GIVING SCREEN ON AVANTE SO NOT NEEDED -
A195: 114 | C195: 10-2 | E195: 3 | F195: Judy | G195: Update SHOPPINGCART.USR | I195: Wayne | K195: 0
A196: 115 | C196: 10-3 | E196: 1 | F196: John | G196: UI - hook up response to the order | L196: John | M196: 2 | N196: 2
A197: 116 | C197: 10-4 | E197: 1 | F197: John | G197: DB - hook up response to the order | I197: John | J197: 6 | K197: 6
A198: 117 | C198: 10-5 | E198: 99 | G198: Reserved for Future Use
A199: 119 | C199: 11-1 | E199: 3 | F199: Judy | G199: Bundling Validation - Ship Via | I199: Wayne | K199: 0
A200: 120 | C200: 11-2 | E200: 3 | F200: Judy | G200: Bundling Validation - Freight Terms | I200: Wayne | K200: 0
... 349 more rows
